Cogmind - Beta 16 @@@ ROGUE MODE // 2025.12.24 @ 02:53:17 Player: Zaros426 Result: Destroyed by Hammer Turret with Backup Laser VII Performance ------------- Evolutions (9) 4500 Regions Visited (28) 5600 Robots Destroyed (423) 2115 Value Destroyed (28152) 28152 Prototype IDs (88) 1760 Alien Tech Used (0) 0 Bonus (28023) 28023 TOTAL SCORE: 70150 Bonus ------- Triggered High Security 500 High Alert Combat Kills 12419 Follower Combat Kills 6776 Entered Garrisons 2200 Used RIF Installer 5500 Aligned with FarCom 300 Scanned by Researcher 500 Friendly Fire -172 Cogmind --------- Core Integrity 0/1600 Matter 300/300 Energy 100/100 System Corruption 36% Temperature Cool (18) Movement Core (50) Location -1/Access Parts ------- > --- POWER (2) -------- (None) > --- PROPULSION (8) --- (None) > --- UTILITY (12) ----- (None) > --- WEAPON (3) ------- (None) > --- INVENTORY (5) ---- Advanced Cloaking Device Experimental EM Shield Advanced Point Defense System Cooled Nova Cannon Advanced Remote Datajack Peak State ------------ > --- POWER ------------ Light Quantum Reactor Light Quantum Reactor > --- PROPULSION ------- Armored Heavy Treads Armored Heavy Treads Armored Heavy Treads Armored Heavy Treads > --- UTILITY ---------- Advanced Heat Sink Huge Storage Unit Experimental Energy Well Experimental Optical Array Advanced Terrain Scan Processor Experimental Core Analyzer Improved Armor Integrity Analyzer Experimental EM Shield Advanced Remote Force Field Relay Coupler [Sentry] Relay Coupler [Hunter] Relay Coupler [Behemoth] > --- WEAPON ----------- Multirail Enhanced Hardcell Cannon Enhanced Hardcell Cannon > --- INVENTORY -------- Light Quantum Reactor Reinforced Quantum Reactor Medium Treads Medium Treads Matter Compressor Seismic Detector Advanced Weapon Cycler ECM Suite Advanced Cloaking Device Experimental Shock Absorption System Advanced Force Field Advanced Remote Force Field Advanced Remote Force Field Advanced Point Defense System Relay Coupler [Proto] Relay Coupler [Proto] Improved Dynamic Insulation System Enhanced Nova Cannon Enhanced Nova Cannon Cooled Nova Cannon Enhanced Hardcell Cannon Gamma Bomb Array Tiamat Missile Launcher Advanced Remote Datajack Nanosword [Rating: 208] Favorites ----------- Power Reinforced Quantum Reactor Engine Ion Engine Power Core Neutrino Core Reactor Reinforced Quantum Reactor Propulsion Armored Heavy Treads Treads Armored Heavy Treads Leg Myomer Leg Wheel Armored Huge Wheel Hover Unit Improved Antigrav System Flight Unit Flying Fortress v7 Utility Improved Armor Integrity Analyzer Device Advanced Remote Force Field Storage Cargo Storage Unit Processor Improved Armor Integrity Analyzer Hackware Relay Coupler [Sentry] Protection Light Armor Plating Weapon Enhanced Hardcell Cannon Energy Gun Cooled Pulse Rifle Energy Cannon Enhanced Nova Cannon Ballistic Gun Multirail Ballistic Cannon Enhanced Hardcell Cannon Launcher Tiamat Missile Launcher Special Weapon Advanced Remote Datajack Slashing Weapon Nanosword Piercing Weapon Plasma Lance Special Melee Weapon Datajack Build | -11 -10 -10 -10 -9 -8 -8 -8 -8 -8 -8 -7 -7 -6 -6 -5 -5 -4 -4 -3 -3 -3 -2 -2 -2 -2 -1 -1 -1 ------- Run | Yrd Mat Min Exi Min Mat Gar Mat Gar Mat Gar Fac Gar Fac Gar Fac Gar Fac Gar Res Tes Gar Res Gar Res Gar Acc Gar Acc Slots Evolved 18 | . . . . . 4 . . . . . 2 . 2 . 2 . 2 . 2 . . 2 . . . 2 . . Power 1 | . . . . . . . . . . . . . . . 1 . . . . . . . . . . . . . Propulsion 6 | . . . . . 2 . . . . . 1 . 1 . . . 2 . . . . . . . . . . . Utility 10 | . . . . . 1 . . . . . 1 . 1 . 1 . . . 2 . . 2 . . . 2 . . Weapon 1 | . . . . . 1 . . . . . . . . . . . . . . . . . . . . . . . Parts Attached 334 | 4 20 2 2 1 21 8 . 3 . 1 3 16 . 9 6 19 3 15 11 23 17 12 49 13 31 . 29 16 Power 31 | . 2 . . . 1 . . 1 . . . 2 . . 1 3 . 1 . . . . 7 3 3 . 6 1 Engine 5 | . 2 . . . 1 . . 1 . . . 1 . . . . . . . . . . . . . . . . Core 2 | . . . . . . . . . . . . 1 . . . 1 . . . . . . . . . . . . Reactor 24 | . . . . . . . . . . . . . . . 1 2 . 1 . . . . 7 3 3 . 6 1 Propulsion 79 | 2 4 . . . 9 2 . . . . . 6 . 3 . 2 2 . 2 1 7 1 16 4 10 . 3 5 Treads 44 | 2 2 . . . 6 2 . . . . . 5 . 3 . 1 1 . 2 1 4 1 6 . 5 . 2 1 Leg 25 | . 2 . . . . . . . . . . . . . . . 1 . . . 3 . 10 4 5 . . . Wheel 2 | . . . . . . . . . . . . 1 . . . . . . . . . . . . . . . 1 Hover 5 | . . . . . 1 . . . . . . . . . . 1 . . . . . . . . . . . 3 Flight 3 | . . . . . 2 . . . . . . . . . . . . . . . . . . . . . 1 . Utility 143 | . 3 2 1 . 3 3 . 2 . 1 2 6 . 5 4 10 1 9 5 11 10 8 21 4 12 . 15 5 Device 50 | . 1 2 . . . 1 . . . 1 . 1 . 2 2 2 . 7 2 6 3 1 7 1 6 . 3 2 Storage 8 | . 1 . 1 . . . . . . . . 1 . . . . . . . 1 1 . 1 . . . 1 1 Processor 9 | . . . . . 1 . . . . . . . . 1 . . . . . 2 1 . . 2 1 . . 1 Hackware 59 | . . . . . . 1 . . . . 2 2 . 1 2 8 1 2 3 1 4 7 12 1 5 . 6 1 Protection 17 | . 1 . . . 2 1 . 2 . . . 2 . 1 . . . . . 1 1 . 1 . . . 5 . Artifact . | . . . . . . . . . . . . . . . . . . . . . . . . . . . . . Weapon 81 | 2 11 . 1 1 8 3 . . . . 1 2 . 1 1 4 . 5 4 11 . 3 5 2 6 . 5 5 Energy Gun 19 | 1 10 . . . 5 . . . . . . . . 1 . . . 1 . 1 . . . . . . . . Energy Cannon 11 | . . . . . 1 . . . . . . 1 . . . 1 . 3 . 1 . . 2 . . . . 2 Ballistic Gun 8 | 1 . . . . 1 . . . . . . . . . . . . . 1 1 . . 2 1 . . 1 . Ballistic Cannon 19 | . . . . . . 1 . . . . . 1 . . . 2 . . 1 3 . 2 . . 4 . 4 1 Launcher 7 | . . . . 1 . 1 . . . . . . . . 1 . . 1 . 2 . . . . 1 . . . Special Weapon 12 | . 1 . . . . 1 . . . . 1 . . . . 1 . . 2 1 . 1 . 1 1 . . 2 Impact Weapon . | . . . . . . . . . . . . . . . . . . . . . . . . . . . . . Slashing Weapon 3 | . . . . . 1 . . . . . . . . . . . . . . 2 . . . . . . . . Piercing Weapon 1 | . . . . . . . . . . . . . . . . . . . . . . . 1 . . . . . Special Melee Weapon 1 | . . . 1 . . . . . . . . . . . . . . . . . . . . . . . . . Unidentified Prototypes 42 | . . 1 . . 5 . . . . . . . . . 2 2 1 1 . 10 1 . 3 5 6 . 5 . Parts Lost 70 | . 6 1 . . 1 . . 1 . . 1 1 . . . 1 . 5 1 1 3 1 20 . . . 1 26 Power 6 | . . . . . . . . . . . . . . . . . . . . . 1 . 3 . . . . 2 Propulsion 20 | . 2 . . . . . . . . . . . . . . . . 1 . . 2 1 5 . . . . 9 Utility 26 | . . 1 . . 1 . . . . . . 1 . . . 1 . 3 1 1 . . 7 . . . 1 9 Weapon 18 | . 4 . . . . . . 1 . . 1 . . . . . . 1 . . . . 5 . . . . 6 Highest Loss Streak 24 | . 4 1 . . 1 . . 1 . . 1 1 . . . 1 . 2 1 1 1 1 12 . . . 1 24 To Critical Strikes 4 | . . . . . . . . . . . . . . . . . . . . . 1 1 . . . . . 2 Average Backups 21 | 1 5 12 11 10 9 12 12 11 12 11 10 23 25 25 23 24 25 25 26 26 26 25 23 24 23 25 24 22 Power . | . . . . . . . . . . . . . 1 1 . . 2 1 1 1 . . . . . . . . Propulsion 2 | . . 2 2 3 2 4 4 4 5 4 4 5 6 5 5 5 4 3 3 3 1 1 . . . . 1 . Utility 11 | . 1 2 1 1 1 1 1 2 2 2 2 11 12 12 14 13 15 15 18 16 16 17 15 18 16 18 15 15 Weapon 5 | . 3 7 7 5 5 6 5 4 4 4 2 4 5 4 4 3 3 3 3 5 6 6 5 5 5 7 6 6 Tool/Special . | . . . . . . . . . . . . . . . . . . . . . . . . . . . . . Unused Backups 58 | . 1 . 2 . 3 . 1 1 . 1 . 15 . 6 2 2 1 2 . 3 4 . 2 1 3 . 1 7 Power 3 | . . . . . 1 . . . . . . . . 1 . . . . . . 1 . . . . . . . Propulsion 13 | . . . . . 1 . 1 1 . 1 . 3 . 3 . . . . . . 2 . . 1 . . . . Utility 35 | . . . . . . . . . . . . 10 . 2 2 2 1 2 . 3 1 . 2 . 3 . 1 6 Weapon 7 | . 1 . 2 . 1 . . . . . . 2 . . . . . . . . . . . . . . . 1 Tool/Special . | . . . . . . . . . . . . . . . . . . . . . . . . . . . . . Average Slot Usage (%) 77 | . 83 90 94 100 92 75 72 70 72 71 63 57 51 60 71 71 72 73 79 79 78 77 84 94 93 84 85 81 Engine 2 | . 13 14 14 14 9 9 9 9 9 9 7 3 . . . . . . . . . . . . . . . . Core 1 | . . . . . . . . . . . . 3 6 6 5 3 . . . . . . . . . . . . Reactor 4 | . . . . . . . . . . . . . . . 4 6 10 10 9 9 9 8 7 7 8 8 8 7 Treads 17 | . 14 28 28 28 32 6 . . . . . 11 13 18 20 23 25 26 23 23 16 17 10 4 10 24 18 17 Leg 3 | . 11 . . . . . . . . . . . . . . . . . . . 6 . 14 26 17 . . . Device 6 | . 4 1 14 14 1 3 . . . 3 7 4 6 7 7 5 5 10 10 12 8 2 10 6 4 4 7 6 Storage 6 | . 3 14 14 14 9 9 9 9 9 9 7 7 6 6 5 5 5 5 4 4 5 4 4 4 4 4 5 3 Processor 7 | . . . . . 3 . . . . . . . . 2 5 5 5 5 4 9 14 17 14 14 17 16 16 15 Hackware 5 | . . . . . . . 9 3 . . 9 1 . . 5 9 9 4 12 3 . 13 7 15 13 12 13 14 Protection 3 | . 8 4 . . 9 13 9 14 18 13 . 5 6 5 2 . . . . . . . . . 2 4 4 4 Energy Gun 5 | . 25 28 9 14 26 20 20 21 18 17 11 1 . . . . . . 1 . . . . . . . . . Energy Cannon 1 | . . . . . . . . . . . . . . . . . . 6 2 . 3 . 3 4 1 . . 1 Ballistic Cannon 4 | . . . . . . . . . . . . 4 6 5 4 5 5 3 6 8 8 8 2 . 4 4 6 4 Special Weapon 1 | . . . . . . . 6 . . . 1 . . . 3 . 4 1 2 1 . 2 1 3 3 4 2 2 Peak Build Rating 208 | 4 13 21 19 20 63 66 63 63 57 62 70 100 102 123 131 136 145 153 161 172 171 166 179 188 188 170 208 197 Average Rating 119 | 3 7 12 15 19 36 58 61 59 57 58 61 71 101 110 118 128 142 145 155 162 161 159 157 172 177 170 194 174 On Entrance 99 | . 4 13 13 19 20 38 61 62 57 57 61 64 100 102 123 130 128 143 152 154 165 159 166 176 188 170 170 197 Avg Prop Armor Cover (%) 13 | 31 29 . . . . . . . . . . 11 20 18 23 . . . . . 6 . 11 12 10 . . . Naked Turns 14 | . . . . . . . . . . . . . . . . . . . . . . . . . . . . 14 Heaviest Build 261 | 3 34 34 90 33 48 93 43 46 44 48 46 229 229 241 259 257 252 253 249 254 261 244 254 158 169 151 209 206 Greatest Support 300 | 20 46 46 46 46 92 80 50 50 50 50 50 147 28 195 190 182 257 272 272 282 295 300 300 163 232 232 240 240 Greatest Overweight (x) 15 | . 2 . 1 . . 1 . . . . . 8 8 8 9 1 1 . . . 1 . 4 . 2 . 1 15 Average Overweight (x) . | . . . . . . . . . . . . 5 8 5 2 . . . . . . . . . . . . . Largest Inventory Capacity 30 | 5 15 15 25 15 15 15 15 15 15 15 15 30 30 30 30 30 30 30 30 30 30 30 30 25 25 25 25 25 Average Capacity 24 | 5 7 15 15 15 15 15 15 15 15 15 15 28 30 30 30 30 30 30 30 30 29 30 26 25 25 25 25 24 Most Carried 30 | 4 12 13 17 15 15 15 15 15 15 15 15 30 30 30 30 30 30 30 30 30 30 30 30 25 25 25 25 25 Average Carried 23 | 1 5 12 14 15 14 14 14 14 15 14 13 25 29 29 28 28 29 28 29 29 28 26 24 24 24 25 24 22 Final Capacity 30 | 5 15 15 15 15 15 15 15 15 15 15 15 30 30 30 30 30 30 30 30 30 30 30 25 25 25 25 25 5 Final Carried 30 | 4 12 12 15 15 15 14 15 15 15 15 15 30 29 30 30 30 30 30 30 30 29 29 25 25 25 25 25 5 Class Distribution -------------------- 29% | Botlord-Tank 18% | Bothacker-Tank 13% | Mutant 9% | Botlord-Mutant 8% | Hauler-Tank 5% | Tank 4% | Botlord-Gunner 3% | Skirmisher Dominant Class ---------------- Mutant | -10/Materials Mutant | -10/Mines Mutant | -10/Exiles Mutant | -9/Mines Skirmisher | -8/Materials Mutant | -8/Garrison Commander-Skirmisher | -8/Materials Tank | -8/Garrison Tank | -8/Materials Tank | -8/Garrison Tank | -7/Factory Bothacker-Tank | -7/Garrison Bothacker-Tank | -6/Factory Bothacker-Tank | -6/Garrison Bothacker-Tank | -5/Factory Hauler-Tank | -5/Garrison Bothacker-Tank | -4/Factory Botlord-Tank | -4/Garrison Botlord-Tank | -3/Research Bothacker-Tank | -3/Testing Hauler-Tank | -3/Garrison Botlord-Gunner | -2/Research Botlord-Mutant | -2/Garrison Botlord-Mutant | -2/Research Botlord-Tank | -2/Garrison Botlord-Mutant | -1/Access Botlord-Tank | -1/Garrison Botlord-Tank | -1/Access Resources | -11 -10 -10 -10 -9 -8 -8 -8 -8 -8 -8 -7 -7 -6 -6 -5 -5 -4 -4 -3 -3 -3 -2 -2 -2 -2 -1 -1 -1 ----------- Run | Yrd Mat Min Exi Min Mat Gar Mat Gar Mat Gar Fac Gar Fac Gar Fac Gar Fac Gar Res Tes Gar Res Gar Res Gar Acc Gar Acc Matter Collected 20393 | 254 236 10 . . 464 438 73 227 . 97 144 479 . 678 279 941 82 1508 755 1616 2509 871 1980 248 1512 . 3650 1342 Remotely . | . . . . . . . . . . . . . . . . . . . . . . . . . . . . . Salvage Created 19871 | 109 778 193 . 63 1784 941 190 980 . 339 174 1830 . 895 139 1189 . 895 502 1063 2245 460 1071 346 891 . 1522 1272 Parts 865 | 11 45 15 . 8 63 51 10 55 . 9 11 79 . 41 10 55 . 23 21 31 65 15 64 16 40 . 45 82 Haulers Intercepted 9 | . 2 . . . 6 . 1 . . . . . . . . . . . . . . . . . . . . . Recyclers Shooed 10 | . . 1 . . 8 . . . . . . . . . . . . . . . . . . . . . . 1 Parts Field Recycled . | . . . . . . . . . . . . . . . . . . . . . . . . . . . . . Retrieved Matter . | . . . . . . . . . . . . . . . . . . . . . . . . . . . . . Parts Self-Destructed . | . . . . . . . . . . . . . . . . . . . . . . . . . . . . . Prevented . | . . . . . . . . . . . . . . . . . . . . . . . . . . . . . Parts Restored . | . . . . . . . . . . . . . . . . . . . . . . . . . . . . . Kills | -11 -10 -10 -10 -9 -8 -8 -8 -8 -8 -8 -7 -7 -6 -6 -5 -5 -4 -4 -3 -3 -3 -2 -2 -2 -2 -1 -1 -1 ------- Run | Yrd Mat Min Exi Min Mat Gar Mat Gar Mat Gar Fac Gar Fac Gar Fac Gar Fac Gar Res Tes Gar Res Gar Res Gar Acc Gar Acc Combat Hostiles Destroyed 398 | . 10 7 . 4 20 24 2 24 . 1 6 32 . 22 4 32 . 50 7 15 32 5 23 2 19 . 34 23 Melee 12 | . . . . . . 1 . . . . 3 . . . . . . . . . . . 7 1 . . . . Guns 87 | . 7 7 . . 16 15 . 20 . 1 3 2 . . . . . . 2 . . . . . 3 . 7 4 Cannons 243 | . . . . . 4 2 . . . . . 30 . 21 4 32 . 35 4 14 28 4 16 1 14 . 22 12 AOE 49 | . 2 . . 4 . 6 2 4 . . . . . 1 . . . 11 1 1 2 1 . . 2 . 5 7 Classes Destroyed 27 | 2 5 1 . . 3 1 . 1 . . . 2 . 1 . 2 . 1 . 3 . . . 1 1 . 2 1 Worker 8 | . 2 . . . 2 . . . . . . . . . . . . . . 2 . 2 . . . . . . Builder 5 | . . . . . 1 . . . . . . . . . . . . . . 2 . . . . . . . 2 Tunneler 7 | 4 2 1 . . . . . . . . . . . . . . . . . . . . . . . . . . Hauler 9 | . 2 . . . 6 . 1 . . . . . . . . . . . . . . . . . . . . . Recycler 13 | 1 . . . . 7 . 1 . . . . . . . . . . . 1 1 . 1 . 1 . . . . Mechanic 2 | . . . . . . . . . . . . . . . . . . . . 1 . . 1 . . . . . Operator 3 | . 1 . . . . . 1 . . . . . . . . . . . . . . . . . 1 . . . Drone 2 | . . . . . . . . . . . . . . . . . . . . . . . . . . . 2 . Turret 2 | . . . . . . . . . . . . . . . . . . . . . . . . . . . . 2 Watcher 12 | . 3 . . . 4 . . . . . . . . 1 . . . . . 2 . . . 1 . . . 1 Swarmer 77 | . . 2 . 4 4 7 2 7 . . 4 2 . 2 2 10 . 1 . . 3 . 8 . 7 . 7 5 Cutter 12 | . . . . . . . . . . . . . . . . 4 . 1 . . . . 4 . . . 3 . Saboteur 1 | . . . . . . . . . . . . . . . . . . . . . . . . 1 . . . . Grunt 112 | . 10 5 . . 10 6 . 8 . . 2 13 . 8 1 1 . 3 3 5 17 . 1 . 2 . 13 4 Brawler 12 | . . . . . . . . 4 . . . 1 . . . 1 . . . 2 . 1 . . 1 . 1 1 Duelist 11 | . . . . . . . . . . . . 3 . 1 . 1 . . . 1 2 . . . . . . 3 Protector 1 | . . . . . . . . . . . . . . . . . . . . 1 . . . . . . . . Researcher 1 | . . . . . . . . . . . . . . . . . . . . 1 . . . . . . . . Sentry 50 | . . . . . 5 6 . 5 . 1 . 8 . 7 . 11 . 1 . 2 2 . . 1 . . 1 . Demolisher 1 | . . . . . . . . . . . . . . . . . . . . . . . . . 1 . . . Specialist 7 | . . . . . . . . . . . . 4 . 3 . . . . . . . . . . . . . . Hunter 21 | . . . . . 1 3 . . . . . . . . 1 . . . . 1 4 2 2 . 1 . 6 . Programmer 43 | . . . . . . 2 . . . . . 1 . . 1 1 . 2 4 3 3 2 6 1 7 . . 10 Q-Series 2 | . . . . . . . . . . . . . . . . . . . . . . . . . . . 2 . Behemoth 5 | . . . . . . . . . . . . . . 1 . 1 . . . . 1 . 2 . . . . . Investigator 1 | . . . . . . . . . . . . . . . . . . . . . . . . . . . . 1 Striker 2 | . . . . . . . . . . . . . . . . 2 . . . . . . . . . . . . Assembled 42 | . . . . . . . . . . . . . . . . . . 42 . . . . . . . . . . Butcher 2 | . . . . . . . . . . . . . . 1 . 1 . . . . . . . . . . . . Guerrilla 1 | . . . . . . . . . . . . . . . . . . . 1 . . . . . . . . . Best Kill Streak 36 | 3 4 4 . 4 5 9 2 6 . 1 3 5 . 4 2 6 . 36 3 5 3 2 4 2 5 . 6 9 Combat Bots Only 36 | . 2 4 . 4 5 9 2 6 . 1 3 5 . 4 2 6 . 36 3 3 3 1 4 1 5 . 6 6 Max Kills in Single Turn 5 | 1 2 1 . 3 2 2 1 2 . 1 1 1 . 1 1 1 . 2 1 2 2 2 1 1 2 . 2 5 Gunslinging . | . . . . . . . . . . . . . . . . . . . . . . . . . . . . . Exploded 5 | . 1 . . 3 . 2 1 2 . . . . . 1 . . . 2 1 1 1 1 . . 2 . 2 5 Melee 1 | . . . . . . 1 . . . . 1 . . . . . . . . . . . 1 1 . . . . Uniques/NPCs Destroyed . | . . . . . . . . . . . . . . . . . . . . . . . . . . . . . Combat | -11 -10 -10 -10 -9 -8 -8 -8 -8 -8 -8 -7 -7 -6 -6 -5 -5 -4 -4 -3 -3 -3 -2 -2 -2 -2 -1 -1 -1 -------- Run | Yrd Mat Min Exi Min Mat Gar Mat Gar Mat Gar Fac Gar Fac Gar Fac Gar Fac Gar Res Tes Gar Res Gar Res Gar Acc Gar Acc Hostile Shots Fired 3048 | . 67 22 . 8 56 82 2 112 . . 40 218 . 208 11 117 6 334 41 118 332 48 329 6 186 . 204 501 Missed 812 | . 13 3 . 2 16 28 1 49 . . 16 69 . 64 1 35 1 92 13 36 68 12 61 2 51 . 51 128 Hits 2236 | . 54 19 . 6 40 54 1 63 . . 24 149 . 144 10 82 5 242 28 82 264 36 268 4 135 . 153 373 Melee 60 | . . . . . . . . . . . . 6 . . . 6 . 6 . . 9 . 2 1 . . 7 23 Projectile 2176 | . 54 19 . 6 40 54 1 63 . . 24 143 . 144 10 76 5 236 28 82 255 36 266 3 135 . 146 350 AOE 15 | . . . . . . . . . . . . . . . . . . 1 . . . . . . 6 . 7 1 Critical Strikes 126 | . 1 1 . . 3 3 . 4 . . . 5 . 3 . 8 1 7 1 6 17 1 17 . 6 . 8 34 Actively Blocked 7 | . . . . . . . . . . . . . . . . 2 . . . . . . 5 . . . . . Part Disruptions 12 | . . . . . . . . . . . . . . 1 . . . 8 . . . . . . . . . 3 Damage Taken 32407 | . 771 252 . 41 681 700 16 765 . . 206 1324 . 1280 86 1078 50 2904 392 1250 3033 838 6031 49 2264 . 2052 6344 Core 3131 | . 142 87 . . 45 62 . 131 . . 26 121 . 41 . 30 . 87 . 99 144 . 374 22 114 . 176 1430 Absorbed by Shields 13626 | . . . . . . . . 151 . . 123 388 . 563 67 823 49 846 282 723 2329 202 2003 51 1291 . 1600 2135 Reduced by Siege Mode 1624 | . . . . . . . . . . . . . . 78 . . . 321 11 46 329 6 599 . 36 . 89 109 Ignored by Resistances 1339 | . . . . . . . . . . . . . . . . . . . . . . . . . . . 698 641 Regen/Repaired (Parts) 955 | . . . . . . . . . . . . . . . . . . . . . . 955 . . . . . . Core Remaining (%) 74 | 100 . . . 8 . . . . . 56 . 79 . 95 . 97 . 92 . . 81 . . . 64 . . . Volleys Fired 1283 | 14 77 18 . 2 78 48 6 52 . 11 22 18 . 19 7 33 9 128 43 69 115 45 103 40 84 . 158 84 Largest 3 | 2 2 2 . 1 3 3 3 3 . 3 3 3 . 1 1 2 1 3 3 3 3 3 3 1 3 . 3 3 Hottest 298 | 70 130 130 . 33 195 66 60 65 . 65 65 120 . 70 70 183 7 298 272 232 294 228 294 150 290 . 174 298 Shots Fired 2476 | 28 134 36 . 2 208 115 13 136 . 14 36 100 . 92 19 102 9 176 73 112 255 67 168 40 144 . 267 130 Gun 819 | 28 132 36 . . 200 90 11 128 . 7 32 11 . . . . . . 14 1 . 4 12 . 38 . 50 25 Cannon 1333 | . . . . . 8 4 . . . . . 87 . 76 14 90 . 148 47 101 240 36 127 30 85 . 156 84 Launcher 49 | . . . . 2 . 12 2 5 . . . . . . . . . 15 . 2 3 . . . . . 4 4 Special 275 | . 2 . . . . 9 . 3 . 7 4 2 . 16 5 12 9 13 12 8 12 27 29 10 21 . 57 17 Kinetic 1194 | 14 1 . . . 1 4 . 22 . 3 18 81 . 76 14 86 . 65 51 92 170 35 74 . 102 . 206 79 Thermal 819 | 14 9 36 . . 207 90 11 106 . 4 14 15 . . . 4 . 83 10 9 70 1 55 30 21 . . 30 Explosive 8 | . . . . . . . . . . . . . . . . . . . . . . . . . . . 4 4 Electromagnetic 182 | . 124 . . 2 . 12 2 5 . . . 2 . . . . . 15 . 3 3 4 10 . . . . . Robot Hit Streak 58 | 7 5 8 . 5 20 23 3 27 . 10 24 58 . 16 15 32 3 14 12 16 16 11 21 7 13 . 18 11 Robot Miss Streak 9 | 2 5 9 . . 7 3 2 4 . . 2 1 . 4 2 1 2 4 3 4 5 5 4 4 4 . 4 6 Penetration Max 2 | . . . . . . . . . . . . . . . . . . . . . . . . . . . 2 . Secondary Targets 7 | . . . . . 5 . . 2 . . . . . . . . . . . . . . . . . . . . Max Gunslinging Chain 1 | . . . . . 1 . . 1 . . . . . . . . . . . . . . . . . . . . Autonomous 228 | . . . . . . 4 . . . . . 75 . 73 12 64 . . . . . . . . . . . . Shots Hit Robots 1735 | 17 77 33 3 2 148 81 5 83 . 23 29 121 . 69 15 81 4 95 38 77 192 42 136 16 87 . 179 82 Core Hits 788 | 7 37 39 . 4 105 38 6 37 . 8 8 47 . 25 5 32 . 48 12 46 66 11 33 6 30 . 86 52 Critical Kills 4 | . . . . . . . . . . . . . . . . . . 2 . . 1 . . . . . 1 . Critical Parts Destroyed 2 | . . . . . . . . 1 . . . . . . . . . . . . . . . . 1 . . . Critical Strikes 112 | . 2 . . . 8 3 . 3 . . 1 11 . 8 . 9 . 6 2 14 14 5 10 . 4 . 11 1 Burn 13 | . . . . . 8 2 . 2 . . 1 . . . . . . . . . . . . . . . . . Meltdown 3 | . . . . . . . . . . . . . . . . . . 2 . . 1 . . . . . . . Destroy 3 | . . . . . . . . 1 . . . . . . . . . . . . . . . . 1 . 1 . Blast 80 | . . . . . . . . . . . . 9 . 8 . 9 . 4 2 13 12 5 4 . 3 . 10 1 Corrupt 2 | . 2 . . . . . . . . . . . . . . . . . . . . . . . . . . . Sever 11 | . . . . . . 1 . . . . . 2 . . . . . . . 1 1 . 6 . . . . . Melee Attacks 205 | . . . 3 . 2 44 . 1 . 14 7 52 . . . . . . . 12 35 . 32 3 . . . . Impact . | . . . . . . . . . . . . . . . . . . . . . . . . . . . . . Slashing 202 | . . . . . 2 44 . 1 . 14 7 52 . . . . . . . 12 35 . 32 3 . . . . Piercing . | . . . . . . . . . . . . . . . . . . . . . . . . . . . . . Sneak Attacks 9 | . . . 3 . . 1 . . . . . . . . . . . . . 2 . . 3 . . . . . Combat Hostiles . | . . . . . . . . . . . . . . . . . . . . . . . . . . . . . Follow-up Attacks . | . . . . . . . . . . . . . . . . . . . . . . . . . . . . . Damage Inflicted 70505 | 186 1322 392 . 112 3009 1976 149 1742 . 732 501 8357 . 4923 840 5468 . 5789 1280 3791 8979 1200 6002 443 3083 . 6015 4214 Guns 10617 | 186 1086 392 . . 2557 1205 95 1634 . 61 371 126 . . . . . . 310 16 . 46 70 . 724 . 1256 482 Cannons 46391 | . . . . . 287 264 . . . . . 6133 . 4923 840 5462 . 4298 970 2931 6119 960 4356 393 2359 . 3551 2545 Explosions 5718 | . 236 . . 112 155 381 54 108 . . . . . . . . . 1491 . 405 145 194 58 . . . 1204 1175 Melee 7733 | . . . . . . 126 . . . 671 130 2084 . . . . . . . 439 2715 . 1518 50 . . . . Ramming 46 | . . . . . 10 . . . . . . 14 . . . 6 . . . . . . . . . . 4 12 Kinetic 41318 | 60 . . . . 17 264 . 282 . 22 162 5814 . 4923 840 5352 . 2236 1039 2715 4341 904 2939 . 2503 . 4807 2098 Thermal 15124 | 126 303 392 . . 2827 1232 95 1352 . 39 209 389 . . . 110 . 2146 241 258 1778 250 1475 393 580 . . 929 Explosive 2534 | . . . . . 155 . . . . . . . . . . . . . . . . . . . . . 1204 1175 Electromagnetic 3750 | . 1019 . . 112 . 354 54 108 . . . 56 . . . . . 1407 . 379 145 46 70 . . . . . Impact . | . . . . . . . . . . . . . . . . . . . . . . . . . . . . . Slashing 7733 | . . . . . . 126 . . . 671 130 2084 . . . . . . . 439 2715 . 1518 50 . . . . Piercing . | . . . . . . . . . . . . . . . . . . . . . . . . . . . . . Highest Corruption 36 | . . . . . . 1 . 5 5 5 . . . 1 1 1 . 6 2 4 2 . . . 4 . 8 36 Average Corruption 3 | . . . . . . 1 . 4 5 5 . . . 1 1 1 . 5 1 1 1 . . . 3 . 6 11 Corruption Purged 18 | . . . . . . 2 . . . . . . . . . . . 9 . 7 . . . . . . . . Corruption Blocked 6 | . . . . . . . . . . . . . . . . . . . . . . 2 4 . . . . . Effects 256 | . . . . . . 5 . 11 1 9 . . . 18 1 23 . 10 12 9 27 . . . 33 . 54 43 Message Errors 65 | . . . . . . . . 3 . . . . . 7 . 9 . 3 2 2 8 . . . 8 . 10 13 Matter Fused 57 | . . . . . . 1 . 1 . 2 . . . 3 . 4 . 2 4 3 7 . . . 6 . 14 10 Heat Flow Errors 25 | . . . . . . . . 1 1 3 . . . 3 . 1 . 2 1 1 3 . . . 2 . 5 2 Energy Discharges 31 | . . . . . . 1 . 2 . 3 . . . 2 1 3 . . 1 . 3 . . . 7 . 6 2 Parts Rejected 1 | . . . . . . . . . . . . . . . . . . . . . . . . . 1 . . . Parts Fused 4 | . . . . . . . . . . . . . . . . . . . . . . . . . . . 3 1 Data Loss (minor) 27 | . . . . . . . . 1 . . . . . 3 . 4 . . . 2 3 . . . 5 . 5 4 Data Loss (major) 9 | . . . . . . . . 1 . . . . . . . 1 . . . . . . . . 1 . 4 2 Misfires 12 | . . . . . . . . . . 1 . . . . . 1 . 1 3 . 1 . . . 2 . 3 . Alerts 8 | . . . . . . 2 . . . . . . . . . . . . . 1 1 . . . 1 . 3 . Misdirections 3 | . . . . . . . . . . . . . . . . . . . . . . . . . . . . 3 Weapon Failures 14 | . . . . . . 1 . 2 . . . . . . . . . 2 1 . 1 . . . . . 1 6 Overload Shots 15 | . . . . . . . . . . 2 . . . . . . . . . . . . 12 1 . . . . Effects 1 | . . . . . . . . . . . . . . . . . . . . . . . 1 . . . . . Heat Surge 1 | . . . . . . . . . . . . . . . . . . . . . . . 1 . . . . . Overflow Damage 3257 | . . . . . 10 25 5 . . . . 798 . 195 118 249 . 667 64 216 373 58 189 . 87 . 72 131 Projectiles 2682 | . . . . . . 25 . . . . . 702 . 195 118 249 . 578 64 152 212 58 112 . 87 . 40 90 Explosions 182 | . . . . . 10 . 5 . . . . . . . . . . 89 . 2 3 . . . . . 32 41 Melee 393 | . . . . . . . . . . . . 96 . . . . . . . 62 158 . 77 . . . . . Knockbacks 187 | . . . . . . 2 . . . . . 25 . 8 6 12 . 10 5 24 35 4 11 . 11 . 19 15 Impact . | . . . . . . . . . . . . . . . . . . . . . . . . . . . . . Kinetic 174 | . . . . . . 2 . . . . . 23 . 7 6 12 . 10 5 19 31 4 11 . 10 . 19 15 Secondary 13 | . . . . . . . . . . . . 2 . 1 . . . . . 5 4 . . . 1 . . . Self-Inflicted Damage 233 | . . . . . 71 16 . 10 . . . . . . . . . 17 . 12 43 . 14 . . . 44 6 Shots 13 | . . . . . 1 1 . 1 . . . . . . . . . 1 . 1 4 . 1 . . . 3 . Rammed 12 | . . . . . 6 . . . . . . 1 . . . 1 . . . . . . . . . . 1 3 Targets Rammed 12 | . . . . . 6 . . . . . . 1 . . . 1 . . . . . . . . . . 1 3 Kicked . | . . . . . . . . . . . . . . . . . . . . . . . . . . . . . Crushed . | . . . . . . . . . . . . . . . . . . . . . . . . . . . . . Highest Temperature 939 | 40 408 393 . . 471 173 16 292 . 255 54 384 . 306 45 379 4 355 373 365 406 246 939 294 398 . 322 422 Average Temperature 109 | 20 134 136 . . 115 40 7 87 . 87 18 110 . 113 27 113 4 119 81 105 121 77 164 98 109 . 62 144 Received Heat Transfer 6340 | . 465 141 . . 234 171 . 133 . . 20 379 . 348 8 97 23 468 16 218 622 38 2039 . 28 . 127 765 Effects 68 | . 7 3 . . 6 . . . . . . 1 . 3 . 2 . 3 2 2 13 . 16 . 5 . 2 3 Shutdowns 13 | . 1 . . . 2 . . . . . . . . . . . . . . 1 2 . 3 . 1 . . 3 Energy Bleed 11 | . 1 . . . . . . . . . . 1 . . . . . 2 2 1 2 . . . 1 . 1 . Interference 20 | . 3 2 . . 2 . . . . . . . . 3 . . . 1 . . 5 . 1 . 2 . 1 . Matter Decay 6 | . 1 . . . 1 . . . . . . . . . . 1 . . . . . . 3 . . . . . Short Circuit 2 | . 1 . . . . . . . . . . . . . . . . . . . . . 1 . . . . . Damage (minor) 4 | . . 1 . . 1 . . . . . . . . . . 1 . . . . . . . . 1 . . . Damage (major) 12 | . . . . . . . . . . . . . . . . . . . . . 4 . 8 . . . . . Siege Activations 51 | . . . . . . . . . . . . . . 2 1 1 . 5 1 2 16 1 5 . 4 . 9 4 Total Turns 872 | . . . . . . . . . . . . . . 35 6 4 . 145 18 30 234 16 160 . 44 . 117 63 Longest Duration 71 | . . . . . . . . . . . . . . 20 6 4 . 71 18 22 39 16 65 . 21 . 25 26 Martial Activations . | . . . . . . . . . . . . . . . . . . . . . . . . . . . . . Shielding Activations . | . . . . . . . . . . . . . . . . . . . . . . . . . . . . . Robots Disrupted 1 | . . . . . . . . . . . . . . . . . . . . . . 1 . . . . . . Combat Hostiles 1 | . . . . . . . . . . . . . . . . . . . . . . 1 . . . . . . Robots Corrupted 5 | . 2 . . . . . . . . . . . . . . . . 2 . 1 . . . . . . . . Combat Hostiles 3 | . 1 . . . . . . . . . . . . . . . . 2 . . . . . . . . . . Parts Fried 7 | . 2 . . 1 . . . . . . . . . . . . . . . 3 1 . . . . . . . Impact Corruptions 2 | . . . . . . . . . . . . 1 . . . . . . . 1 . . . . . . . . Robots Melted 5 | . . . . . 1 . . . . . . . . . . . . 2 . . 2 . . . . . . . Combat Hostiles 4 | . . . . . . . . . . . . . . . . . . 2 . . 2 . . . . . . . Parts Melted 34 | 2 . 1 . . 13 5 . 2 . . . 1 . . . 1 . 1 . 2 2 . . . 3 . . 1 Heat Transferred 20236 | 370 357 505 . . 5703 2418 185 2627 . 74 481 874 . . . 154 . 1788 259 235 1535 137 1075 333 406 . . 720 Parts Sabotaged 10 | . . . . . . . . . . . . . . . . . . . . . . . . 2 . . . 8 Parts Stolen . | . . . . . . . . . . . . . . . . . . . . . . . . . . . . . Parts Stripped . | . . . . . . . . . . . . . . . . . . . . . . . . . . . . . Power Chain Reactions 12 | . 4 . . . . 2 1 . . . . . . . . . . 2 . 1 . 1 1 . . . . . Alert | -11 -10 -10 -10 -9 -8 -8 -8 -8 -8 -8 -7 -7 -6 -6 -5 -5 -4 -4 -3 -3 -3 -2 -2 -2 -2 -1 -1 -1 ------- Run | Yrd Mat Min Exi Min Mat Gar Mat Gar Mat Gar Fac Gar Fac Gar Fac Gar Fac Gar Res Tes Gar Res Gar Res Gar Acc Gar Acc Maximum Alert Level 5 | . . . . . 1 4 2 4 3 2 1 4 3 5 4 5 4 5 4 4 5 4 5 5 5 4 5 5 Low Security (%) 10 | 100 100 100 . 100 26 . . . . . 52 . . . . . . . . . . . . . . . . . Level 1 4 | . . . . . 73 12 . . . . 47 14 . . . . . . . . . . . . . . . . Level 2 9 | . . . . . . 26 100 20 . 100 . 29 . 15 . . . . . 47 . . . . . . . . Level 3 18 | . . . . . . 47 . 39 100 . . 25 100 38 84 14 57 20 73 25 7 . 4 . . . 20 . Level 4 29 | . . . . . . 13 . 40 . . . 30 . 39 15 36 42 57 26 27 30 100 49 38 50 100 15 5 Level 5 25 | . . . . . . . . . . . . . . 6 . 48 . 22 . . 62 . 46 61 49 . 63 40 High Security 1 | . . . . . . . . . . . . . . . . . . . . . . . . . . . . 53 Max Security . | . . . . . . . . . . . . . . . . . . . . . . . . . . . . . Peak Influence 2704 | 15 99 84 . 80 370 1161 658 1455 709 567 309 1505 789 1778 1324 2471 1297 2011 1159 1279 2646 1501 2704 1670 1918 1150 2694 2097 Initial 1616 | . 3 17 . . 31 226 565 421 709 460 297 216 789 538 933 921 1297 737 1119 625 944 1488 1033 1521 1176 1150 912 1616 Average 1166 | 3 29 17 . 13 243 762 535 1003 709 530 200 821 779 1098 1020 1602 1118 1291 1074 852 1770 1395 1666 1596 1607 1147 1746 1778 Influence Increases 21403 | 25 462 214 . 90 810 935 323 1144 . 227 242 1379 . 1300 653 1640 26 1444 416 1166 1832 262 1991 322 1257 . 2302 941 Destroy 0b10 Robot/C 9620 | . 200 160 . 80 400 580 140 740 . 20 160 680 . 640 280 740 20 300 200 600 800 100 720 80 540 . 960 480 Destroy 0b10 Robot/NC 440 | 25 50 5 . . 100 . 15 . . 15 . 50 . 5 . . . 5 10 70 30 15 . 25 . . 5 15 Destroy Leader 942 | . 70 30 . 10 120 20 32 30 . . 30 30 . 30 60 20 . 10 40 94 50 20 50 24 40 . 60 72 Allied During Kill 1610 | . . 4 . . . 11 102 170 . 3 7 2 . 43 58 32 4 76 15 177 92 22 265 60 169 . 281 17 Successful Hack 213 | . 14 . . . 41 21 9 14 . 14 . 7 . 7 . 6 . 14 30 . 10 . . . 14 . 12 . Disable Machine 720 | . 60 . . . 45 15 15 . . 15 . 60 . 15 120 . . 15 30 75 45 15 45 15 60 . 45 30 Anti-Garrison Action 4950 | . . . . . . 100 . 50 . 100 . 450 . 500 . 650 . 850 . . 600 . 650 . 350 . 650 . Destroy Structure 1528 | . 23 . . . 29 83 10 20 . . . 25 . 30 90 42 2 114 46 120 115 60 126 118 69 . 244 162 Partial Spotted 105 | . . . . . 30 15 . 15 . . . . . 15 . . . . . . 15 . . . 15 . . . Lose Combat Pursuer 1275 | . 45 15 . . 45 90 . 105 . 60 45 75 . 15 45 150 . 60 45 30 75 30 135 . . . 45 165 Influence Decreases 19366 | 20 421 247 13 10 541 123 836 337 746 369 500 183 736 291 1115 485 1444 506 1294 1020 445 1530 665 1457 908 778 748 1598 Entered New Map 12902 | . 2 29 13 . 49 123 596 227 746 249 270 93 716 231 845 395 1174 316 872 488 315 1158 345 1183 393 768 228 1078 Time Decay 3139 | 20 359 188 . 10 482 . 90 . . . 70 . 20 . 230 . 120 . 392 482 . 262 . 214 . 10 . 190 Lost Part 700 | . 60 10 . . 10 . . 10 . . 10 10 . . . 10 . 50 10 10 30 10 200 . . . 10 260 Lost Ally 1650 | . . 20 . . . . . 100 . 120 . 80 . 60 40 80 . 140 20 40 100 100 120 60 140 . 360 70 Purge Threat 975 | . . . . . . . 150 . . . 150 . . . . . 150 . . . . . . . 375 . 150 . Squads Dispatched 52 | . 3 . . 1 2 . . . . . 3 . . . 4 . . . 3 11 . 6 . 2 . . . 17 Investigation 3 | . 1 . . . . . . . . . . . . . 1 . . . . 1 . . . . . . . . Extermination 8 | . . . . . . . . . . . . . . . 1 . . . 2 2 . 1 . 1 . . . 1 Reinforcement 14 | . 2 . . 1 2 . . . . . 1 . . . 1 . . . . 4 . 2 . . . . . 1 Assault 24 | . . . . . . . . . . . . . . . . . . . 1 4 . 3 . 1 . . . 15 Garrison 3 | . . . . . . . . . . . 2 . . . 1 . . . . . . . . . . . . . Intercept . | . . . . . . . . . . . . . . . . . . . . . . . . . . . . . Searches Triggered . | . . . . . . . . . . . . . . . . . . . . . . . . . . . . . Unchained Authorized 2 | . . . . . . . . . . . . . . . . . . . . . . . . 1 . . . 1 Construction Impeded 2 | . . . . 1 . . . . . . . . . . . . . . . 1 . . . . . . . . Haulers Reinforced 1 | . . . . . . . . . . . . . . . . . . . . . . . . . . . . 1 Active Scanning Responses . | . . . . . . . . . . . . . . . . . . . . . . . . . . . . . Cargo Convoy Interrupts . | . . . . . . . . . . . . . . . . . . . . . . . . . . . . . Alert ID Control Effect 50 | . . . . . . . . . . . . . . . . . . . . . . 7 7 9 9 . 18 . Stealth | -11 -10 -10 -10 -9 -8 -8 -8 -8 -8 -8 -7 -7 -6 -6 -5 -5 -4 -4 -3 -3 -3 -2 -2 -2 -2 -1 -1 -1 --------- Run | Yrd Mat Min Exi Min Mat Gar Mat Gar Mat Gar Fac Gar Fac Gar Fac Gar Fac Gar Res Tes Gar Res Gar Res Gar Acc Gar Acc Distress Signals 18 | . 1 . . . 7 . . . . . 1 . . 1 . . . . 3 1 . . . 1 . . 1 2 Communications Jammed 172 | . . . . . . . . . . . . . . . 2 . . . . 42 . 3 . 7 . . . 118 Distress Signals 172 | . . . . . . . . . . . . . . . 2 . . . . 42 . 3 . 7 . . . 118 Times Spotted 799 | . 19 9 . 4 31 31 7 34 . 3 14 39 . 36 17 43 1 70 15 45 40 23 52 17 53 . 81 115 Peak Tracking Total 31 | . 3 5 . 4 7 5 3 6 . 6 8 6 . 8 6 4 1 7 4 11 8 6 7 6 13 . 11 31 Tactical Retreats 70 | . 2 1 . . 2 4 . 3 . 1 2 5 . 1 3 8 . 9 3 2 3 2 6 . . . 3 10 Traps | -11 -10 -10 -10 -9 -8 -8 -8 -8 -8 -8 -7 -7 -6 -6 -5 -5 -4 -4 -3 -3 -3 -2 -2 -2 -2 -1 -1 -1 ------- Run | Yrd Mat Min Exi Min Mat Gar Mat Gar Mat Gar Fac Gar Fac Gar Fac Gar Fac Gar Res Tes Gar Res Gar Res Gar Acc Gar Acc Traps Triggered 49 | . 1 . . . . 11 . 3 . . . 3 . 6 . 7 . 4 1 1 3 . 3 1 1 . 4 . Indirectly 11 | . . . . . . 7 . . . . . . . . . . . 4 . . . . . . . . . . Trap Hack Attempts . | . . . . . . . . . . . . . . . . . . . . . . . . . . . . . Triggered . | . . . . . . . . . . . . . . . . . . . . . . . . . . . . . Disarmed . | . . . . . . . . . . . . . . . . . . . . . . . . . . . . . Reprogrammed . | . . . . . . . . . . . . . . . . . . . . . . . . . . . . . Reused . | . . . . . . . . . . . . . . . . . . . . . . . . . . . . . Traps Extracted . | . . . . . . . . . . . . . . . . . . . . . . . . . . . . . Installed . | . . . . . . . . . . . . . . . . . . . . . . . . . . . . . Triggered . | . . . . . . . . . . . . . . . . . . . . . . . . . . . . . Machines | -11 -10 -10 -10 -9 -8 -8 -8 -8 -8 -8 -7 -7 -6 -6 -5 -5 -4 -4 -3 -3 -3 -2 -2 -2 -2 -1 -1 -1 ---------- Run | Yrd Mat Min Exi Min Mat Gar Mat Gar Mat Gar Fac Gar Fac Gar Fac Gar Fac Gar Res Tes Gar Res Gar Res Gar Acc Gar Acc Machines Disabled 95 | . 4 . . . 3 4 1 . . 3 . 7 . 3 8 6 . 5 2 6 7 1 11 1 10 . 11 2 Max in Single Turn 3 | . 3 . . . 2 1 . . . 1 . 1 . 1 1 1 . 1 1 1 1 1 1 . 1 . 1 1 Garrison Relay 38 | . . . . . . 2 . . . 2 . 3 . 1 . 4 . 4 . . 4 . 8 . 5 . 5 . Phase Generator 2 | . . . . . . . . . . . . . . . . 1 . . . . . . . . . . 1 . Machines Repaired . | . . . . . . . . . . . . . . . . . . . . . . . . . . . . . Machines Dismantled . | . . . . . . . . . . . . . . . . . . . . . . . . . . . . . Machines Sabotaged . | . . . . . . . . . . . . . . . . . . . . . . . . . . . . . Overloaded Fab Kills . | . . . . . . . . . . . . . . . . . . . . . . . . . . . . . Hacking | -11 -10 -10 -10 -9 -8 -8 -8 -8 -8 -8 -7 -7 -6 -6 -5 -5 -4 -4 -3 -3 -3 -2 -2 -2 -2 -1 -1 -1 --------- Run | Yrd Mat Min Exi Min Mat Gar Mat Gar Mat Gar Fac Gar Fac Gar Fac Gar Fac Gar Res Tes Gar Res Gar Res Gar Acc Gar Acc Machines Accessed 67 | . 6 . 3 . 4 3 5 2 2 1 1 4 1 3 2 2 2 4 4 4 1 2 3 3 2 1 2 . Terminals 51 | . 6 . . . 3 3 4 2 1 1 . 4 . 3 . 2 1 4 3 3 1 1 3 2 2 . 2 . Fabricators . | . . . . . . . . . . . . . . . . . . . . . . . . . . . . . Repair Stations . | . . . . . . . . . . . . . . . . . . . . . . . . . . . . . Recycling Units . | . . . . . . . . . . . . . . . . . . . . . . . . . . . . . Scanalyzers 2 | . . . . . . . . . . . . . . . 1 . . . 1 . . . . . . . . . Garrison Access 11 | . . . . . 1 . 1 . 1 . 1 . 1 . 1 . 1 . . 1 . 1 . 1 . 1 . . Total Hacks 169 | . 17 . 33 . 16 5 9 5 7 2 1 9 1 8 4 4 4 7 8 9 1 3 7 3 3 1 2 . Successful 88 | . 10 . 33 . 10 2 4 1 2 1 1 1 1 1 1 2 2 1 5 2 1 2 1 1 1 1 1 . Failed 80 | . 6 . . . 6 3 5 4 5 1 . 8 . 7 3 2 2 6 3 7 . 1 6 2 2 . 1 . Catastrophic 18 | . . . . . 1 1 1 1 . . . 4 . 2 1 1 1 1 . . . . 1 1 1 . 1 . Database Lockouts 1 | . 1 . . . . . . . . . . . . . . . . . . . . . . . . . . . Manual 30 | . 10 . 1 . 7 1 7 1 . . . . . . . 1 . . . . . . . 1 1 . . . Terminals 119 | . 17 . . . 15 5 8 5 6 2 . 9 . 8 . 4 3 7 5 8 1 2 7 2 3 . 2 . Fabricators . | . . . . . . . . . . . . . . . . . . . . . . . . . . . . . Repair Stations . | . . . . . . . . . . . . . . . . . . . . . . . . . . . . . Recycling Units . | . . . . . . . . . . . . . . . . . . . . . . . . . . . . . Scanalyzers 6 | . . . . . . . . . . . . . . . 3 . . . 3 . . . . . . . . . Garrison Access 11 | . . . . . 1 . 1 . 1 . 1 . 1 . 1 . 1 . . 1 . 1 . 1 . 1 . . Terminal Hacks 64 | . 5 . 33 . 5 2 2 1 1 1 . 1 . 1 . 2 1 1 2 1 1 1 1 . 1 . 1 . Record 34 | . 1 . 32 . . . . . . . . . . . . . . . . 1 . . . . . . . . Robot Analysis 2 | . 1 . . . 1 . . . . . . . . . . . . . . . . . . . . . . . Open Door 4 | . . . . . . 1 . . . . . 1 . 1 . 1 . . . . . . . . . . . . Branch Access Points 1 | . . . . . . . . . . . . . . . . . . . 1 . . . . . . . . . Emergency Access Points 6 | . . . . . . 1 . 1 1 . . . . . . 1 . . . . . . 1 . 1 . . . Terminal Index 1 | . . . . . . . 1 . . . . . . . . . . . . . . . . . . . . . Unreport Threat 2 | . . . . . . . 1 . . . . . . . . . 1 . . . . . . . . . . . Locate Traps 4 | . 1 . . . 2 . . . . . . . . . . . . . 1 . . . . . . . . . Recall Investigation 1 | . 1 . . . . . . . . . . . . . . . . . . . . . . . . . . . Zone Layout 4 | . 1 . . . 2 . . . . . . . . . . . . . . . . 1 . . . . . . Garrison Registry 4 | . . . . . . . . . . 1 . . . . . . . 1 . . 1 . . . . . 1 . Proto ID Catalog 1 | . . . 1 . . . . . . . . . . . . . . . . . . . . . . . . . Fabricator Hacks . | . . . . . . . . . . . . . . . . . . . . . . . . . . . . . Repair Station Hacks . | . . . . . . . . . . . . . . . . . . . . . . . . . . . . . Recycling Unit Hacks . | . . . . . . . . . . . . . . . . . . . . . . . . . . . . . Scanalyzer 3 | . . . . . . . . . . . . . . . . . . . 3 . . . . . . . . . Insert Component 1 | . . . . . . . . . . . . . . . . . . . 1 . . . . . . . . . Analyze 1 | . . . . . . . . . . . . . . . . . . . 1 . . . . . . . . . Retrieve Study 1 | . . . . . . . . . . . . . . . . . . . 1 . . . . . . . . . Garrison Access Hacks 11 | . . . . . 1 . 1 . 1 . 1 . 1 . 1 . 1 . . 1 . 1 . 1 . 1 . . Unlock Access 11 | . . . . . 1 . 1 . 1 . 1 . 1 . 1 . 1 . . 1 . 1 . 1 . 1 . . Unauthorized Hacks 10 | . 5 . . . 4 . 1 . . . . . . . . . . . . . . . . . . . . . Terminals 10 | . 5 . . . 4 . 1 . . . . . . . . . . . . . . . . . . . . . Botnet 1 | . . . . . 1 . . . . . . . . . . . . . . . . . . . . . . . Skim 9 | . 5 . . . 3 . 1 . . . . . . . . . . . . . . . . . . . . . Fabricators . | . . . . . . . . . . . . . . . . . . . . . . . . . . . . . Repair Stations . | . . . . . . . . . . . . . . . . . . . . . . . . . . . . . Recycling Units . | . . . . . . . . . . . . . . . . . . . . . . . . . . . . . Scanalyzers . | . . . . . . . . . . . . . . . . . . . . . . . . . . . . . Garrison Access . | . . . . . . . . . . . . . . . . . . . . . . . . . . . . . Data Cores Recovered 2 | . . . . . . . 1 . . . . . . . . . . . . . . . . 1 . . . . Used . | . . . . . . . . . . . . . . . . . . . . . . . . . . . . . Hacking Detections 55 | . 5 . . . 3 3 4 2 1 1 . 4 1 3 2 1 2 3 4 4 1 2 2 2 2 1 2 . Full Trace Events 9 | . . . . . . . . 1 . . . 2 . 3 1 . . 1 . 1 . . . . . . . . Feedback Events 1 | . . . . . . . . . . . . . . . 1 . . . . . . . . . . . . . Corruption 1 | . . . . . . . . . . . . . . . 1 . . . . . . . . . . . . . Feedback Blocked . | . . . . . . . . . . . . . . . . . . . . . . . . . . . . . Robot Schematics Acquired 2 | . . . . . . . . . . . . . . . . . . . . 2 . . . . . . . . Robots Built . | . . . . . . . . . . . . . . . . . . . . . . . . . . . . . Authchips . | . . . . . . . . . . . . . . . . . . . . . . . . . . . . . Time . | . . . . . . . . . . . . . . . . . . . . . . . . . . . . . Total Robot Build Rating . | . . . . . . . . . . . . . . . . . . . . . . . . . . . . . Part Schematics Acquired 9 | . . . . . . . . . . . . . . . . . . . 1 8 . . . . . . . . Parts Built . | . . . . . . . . . . . . . . . . . . . . . . . . . . . . . Authchips . | . . . . . . . . . . . . . . . . . . . . . . . . . . . . . Time . | . . . . . . . . . . . . . . . . . . . . . . . . . . . . . Total Part Build Rating . | . . . . . . . . . . . . . . . . . . . . . . . . . . . . . Part Studies Acquired 1 | . . . . . . . . . . . . . . . . . . . 1 . . . . . . . . . Parts Repaired . | . . . . . . . . . . . . . . . . . . . . . . . . . . . . . Time . | . . . . . . . . . . . . . . . . . . . . . . . . . . . . . Parts Recycled . | . . . . . . . . . . . . . . . . . . . . . . . . . . . . . Recycled Matter . | . . . . . . . . . . . . . . . . . . . . . . . . . . . . . Retrieved Matter . | . . . . . . . . . . . . . . . . . . . . . . . . . . . . . Retrieved Components . | . . . . . . . . . . . . . . . . . . . . . . . . . . . . . Parts Scanalyzed 1 | . . . . . . . . . . . . . . . . . . . 1 . . . . . . . . . Part Schematics Acquired 1 | . . . . . . . . . . . . . . . . . . . 1 . . . . . . . . . Parts Damaged . | . . . . . . . . . . . . . . . . . . . . . . . . . . . . . Bothacking | -11 -10 -10 -10 -9 -8 -8 -8 -8 -8 -8 -7 -7 -6 -6 -5 -5 -4 -4 -3 -3 -3 -2 -2 -2 -2 -1 -1 -1 ------------ Run | Yrd Mat Min Exi Min Mat Gar Mat Gar Mat Gar Fac Gar Fac Gar Fac Gar Fac Gar Res Tes Gar Res Gar Res Gar Acc Gar Acc Used RIF Installer 11 | . . . . . . 1 . 1 . 1 . 1 . 1 . 1 . 1 . . 1 . 1 . 1 . 1 . Coupler Efficiency 1 | . . . . . . . . . . . . . . . . . . . . . . . . . . . 1 . Hotswap 1 | . . . . . . . . . . . . . . . . . . . . . . . . . 1 . . . Code Merge 1 | . . . . . . . . . . . . . . 1 . . . . . . . . . . . . . . Signal Jammer 1 | . . . . . . . . . . . . . . . . . . . . . . . 1 . . . . . Zone Cloak 1 | . . . . . . . . . . . . . . . . . . 1 . . . . . . . . . . Robot Detection 1 | . . . . . . . . . . . . 1 . . . . . . . . . . . . . . . . Patrol Navigation 1 | . . . . . . . . . . 1 . . . . . . . . . . . . . . . . . . Alert ID Control 1 | . . . . . . . . . . . . . . . . . . . . . 1 . . . . . . . Structural Interface 1 | . . . . . . . . 1 . . . . . . . . . . . . . . . . . . . . Program Shield 1 | . . . . . . . . . . . . . . . . 1 . . . . . . . . . . . . Robots Hacked 134 | . . . 3 . . 1 . 2 . . 2 2 . 4 4 9 3 6 8 7 6 12 12 7 13 . 20 13 Non-combat 26 | . . . 2 . . . . . . . 1 . . . 1 . 2 . 4 . . 3 . 4 1 . 1 7 Combat 108 | . . . 1 . . 1 . 2 . . 1 2 . 4 3 9 1 6 4 7 6 9 12 3 12 . 19 6 Robot Hacks Applied 153 | . . . 3 . . 1 . 2 . . 3 2 . 4 5 11 4 7 9 7 8 14 14 7 17 . 22 13 parse_system 6 | . . . 3 . . . . . . . . . . 1 . . 1 . . . . . . . . . 1 . no_distress 2 | . . . . . . . . . . . . . . . . . . . . . . . . . . . . 2 find_chute 3 | . . . . . . . . . . . . . . . 1 . 2 . . . . . . . . . . . map_walls 2 | . . . . . . . . . . . . . . . . . . . . . . . . 1 . . . 1 find_fabricator 1 | . . . . . . . . . . . . . . . . . . . 1 . . . . . . . . . drop_inventory 3 | . . . . . . . . . . . . . . . . . . . 2 . . 1 . . . . . . purge_threat 5 | . . . . . . . . . . . 1 . . . . . . . . . . . . . 3 . 1 . locate_traps 1 | . . . . . . . . . . . . . . . . . . . . . . . . . 1 . . . map_route 7 | . . . . . . . . . . . . . . . . . . . 1 . . 1 . 3 . . . 2 emergency_deploy 1 | . . . . . . . . . . . . . . . . . . . . . . . . . . . 1 . find_garrison 5 | . . . . . . . . . . . 1 . . . 1 . 1 . . . . 1 . 1 . . . . link_fov 1 | . . . . . . . . . . . . . . . . . . . . . . . 1 . . . . . scatter_targeting 4 | . . . . . . . . . . . . . . . . . . 1 . 1 1 1 . . . . . . link_complan 1 | . . . . . . . . . . . . . . . . . . . . . 1 . . . . . . . disrupt_area 10 | . . . . . . . . . . . . . . . . 2 . . . 2 2 . 1 . . . 2 1 spike_heat 2 | . . . . . . . . . . . . . . . . . . . . . 1 . . . . . . 1 overload_power 1 | . . . . . . . . . . . . . . . . 1 . . . . . . . . . . . . amplify_resonance 19 | . . . . . . . . 1 . . . . . 1 . 1 . . 1 2 . 3 . . 4 . 2 4 disable_weapons 15 | . . . . . . . . 1 . . . . . 1 . 2 . 2 1 1 1 1 5 . . . . . overwrite_iff 18 | . . . . . . . . . . . . 1 . 1 3 1 . . . . . 1 1 1 1 . 7 1 streamctrl_high 1 | . . . . . . . . . . . . . . . . . . . . . . . . . . . 1 . formatsys_low 3 | . . . . . . . . . . . . . . . . . . . . . . 1 . . 1 . 1 . formatsys_high 42 | . . . . . . 1 . . . . 1 1 . . . 4 . 4 3 1 2 4 6 1 7 . 6 1 Relay Couplers Released 150 | . . . . . . 7 . . . 7 . 13 . 5 . 15 . 14 . . 16 . 33 . 21 . 19 . Machine Destruction 150 | . . . . . . 7 . . . 7 . 13 . 5 . 15 . 14 . . 16 . 33 . 21 . 19 . Attached 56 | . . . . . . 1 . . . . 2 2 . 1 2 7 1 2 3 1 3 7 11 1 5 . 6 1 Merged Code Value 303 | . . . . . . . . . . . . . . . . 41 . 49 . 4 . . 45 . 102 . 62 . Fabnet Peak Effective % . | . . . . . . . . . . . . . . . . . . . . . . . . . . . . . Robots Rewired 42 | . . . . . . 6 . . . 6 . . . 4 . . . 3 . . 3 . 4 . . . 16 . Allies Hacked 4 | . . . . . . . . 1 . . . . . . 1 . . . . . 1 . 1 . . . . . Hacks Repelled . | . . . . . . . . . . . . . . . . . . . . . . . . . . . . . Allies | -11 -10 -10 -10 -9 -8 -8 -8 -8 -8 -8 -7 -7 -6 -6 -5 -5 -4 -4 -3 -3 -3 -2 -2 -2 -2 -1 -1 -1 -------- Run | Yrd Mat Min Exi Min Mat Gar Mat Gar Mat Gar Fac Gar Fac Gar Fac Gar Fac Gar Res Tes Gar Res Gar Res Gar Acc Gar Acc Total Allies 117 | . . 2 . . . 7 . . . 6 1 4 . 7 3 7 . 7 3 1 7 6 12 2 9 . 31 2 Largest Group 12 | . . 2 . . . 7 7 7 . 6 1 2 . 3 3 3 2 6 1 2 3 3 7 4 6 . 12 2 Highest-Rated Group 843 | . . 46 . . . 205 205 205 . 96 32 64 . 385 385 171 98 259 64 226 216 133 440 311 371 . 843 109 Highest-Rated Ally 219 | . . 31 . . . 40 40 40 . 18 32 39 . 148 148 95 49 51 64 162 80 69 119 119 148 . 219 64 Total Orders 10 | . . . . . . . . . . 4 . . . . . . . . . 2 . 1 1 . . . 2 . STAY 3 | . . . . . . . . . . 2 . . . . . . . . . 1 . . . . . . . . ROAM 2 | . . . . . . . . . . . . . . . . . . . . . . . . . . . 2 . FOLLOW 3 | . . . . . . . . . . 2 . . . . . . . . . 1 . . . . . . . . AID 2 | . . . . . . . . . . . . . . . . . . . . . . 1 1 . . . . . Ally Attacks 899 | . . 4 . . . 21 18 53 . 1 6 8 . 27 37 28 8 71 13 54 65 56 105 60 85 . 173 6 Total Damage 30043 | . . 43 . . . 483 359 1327 . . 252 272 . 852 1623 1124 213 2130 428 3351 1809 1405 2855 2446 3246 . 5580 245 Kills 197 | . . 2 . . . 5 5 14 . . 2 2 . 10 11 6 1 9 4 20 8 7 21 15 17 . 38 . Allies Corrupted 7 | . . . . . . . . . . . . 1 . . . . . . . 1 1 1 . 1 1 . 1 . Allies Melted 3 | . . . . . . . . . . 1 . . . . . . . . . . . . 1 . . . 1 . Intel | -11 -10 -10 -10 -9 -8 -8 -8 -8 -8 -8 -7 -7 -6 -6 -5 -5 -4 -4 -3 -3 -3 -2 -2 -2 -2 -1 -1 -1 ------- Run | Yrd Mat Min Exi Min Mat Gar Mat Gar Mat Gar Fac Gar Fac Gar Fac Gar Fac Gar Res Tes Gar Res Gar Res Gar Acc Gar Acc Active Infowar (turns) 10149 | . 387 62 563 69 32 . . . . . 5 . . 550 180 124 . 711 543 973 71 126 925 108 1559 25 2330 806 Optics 4828 | . . . . . . . . . . . . . . . . . . . . . . . . 108 1559 25 2330 806 Sensors 18 | . . 1 . . . . . . . . 5 . . . 12 . . . . . . . . . . . . . A.S.S. 1 | . . . . . . . . . . . . . . . . . . . . . . . 1 . . . . . Terrain 317 | . . . . . . . . . . . . . . . . . . . . 191 2 . . . . . . 124 Seismic 1591 | . 387 61 563 69 32 . . . . . . . . . . . . . . 237 58 . 184 . . . . . Cloaking 1734 | . . . . . . . . . . . . . . . . . . 711 448 31 . 23 390 . 6 . 125 . Spoofing 2 | . . . . . . . . . . . . . . . . . . . . . 2 . . . . . . . Jamming 2384 | . . . . . . . . . . . . . . 550 168 124 . . 148 824 9 126 435 . . . . . Robot Analysis Total 2 | . 1 . . . 1 . . . . . . . . . . . . . . . . . . . . . . . Derelict Logs Recovered 2 | . . 2 . . . . . . . . . . . . . . . . . . . . . . . . . . Drone Launches . | . . . . . . . . . . . . . . . . . . . . . . . . . . . . . Drone Recoveries . | . . . . . . . . . . . . . . . . . . . . . . . . . . . . . Exploration | -11 -10 -10 -10 -9 -8 -8 -8 -8 -8 -8 -7 -7 -6 -6 -5 -5 -4 -4 -3 -3 -3 -2 -2 -2 -2 -1 -1 -1 ------------- Run | Yrd Mat Min Exi Min Mat Gar Mat Gar Mat Gar Fac Gar Fac Gar Fac Gar Fac Gar Res Tes Gar Res Gar Res Gar Acc Gar Acc Turns Passed 28735 | 89 1716 738 563 69 1244 1181 184 594 17 478 147 1959 56 2191 489 2345 251 1863 937 1246 2284 569 2247 444 1641 25 2330 838 Spaces Moved 14073 | 74 889 406 260 35 546 1126 227 695 33 380 115 861 24 885 168 847 127 792 454 530 810 231 1142 267 883 15 924 327 Core 163 | 72 59 . . . . . . . . . . . . . . . . . . . . . . . . . . 32 Treads 7895 | 2 396 406 260 35 450 78 . . . . . 100 . 340 119 847 127 792 454 530 810 231 315 . 389 15 924 275 Legs 2022 | . 434 . . . . . . . . . . . . . . . . . . . . . 827 267 494 . . . Wheels 1234 | . . . . . . . . . . . . 614 24 545 49 . . . . . . . . . . . . 2 Hover 18 | . . . . . . . . . . . . . . . . . . . . . . . . . . . . 18 Flight 2741 | . . . . . 96 1048 227 695 33 380 115 147 . . . . . . . . . . . . . . . . Fastest Speed 50 | 50 50 160 160 160 50 50 50 50 50 50 50 50 220 157 205 163 160 158 158 153 148 156 116 111 111 163 163 50 Average Speed 146 | 52 135 160 166 160 140 58 50 50 50 50 50 182 220 224 230 242 160 158 158 156 184 159 132 116 142 163 168 151 Slowest Speed 400 | 160 190 160 240 160 160 240 50 50 50 50 50 320 220 250 243 243 243 160 158 158 235 160 400 118 250 163 210 305 Overloaded Moves . | . . . . . . . . . . . . . . . . . . . . . . . . . . . . . Propulsion Burnouts . | . . . . . . . . . . . . . . . . . . . . . . . . . . . . . Robots Hopped 2 | . . . . . . . 1 . . . . . . . . . . 1 . . . . . . . . . . Potential Cave-ins 4 | . . . . . . . . . . . . . . . . . . . . . . 1 . 3 . . . . Cave-ins Triggered . | . . . . . . . . . . . . . . . . . . . . . . . . . . . . . Exploration Rate (%) 49 | 3 99 76 59 20 65 95 25 86 5 51 3 96 2 97 5 97 6 87 16 63 75 5 97 12 90 1 95 12 Regions Visited 28 Branch Regions 4 Pre-discovered Areas 2 | . 1 . 1 . . . . . . . . . . . . . . . . . . . . . . . . . Known Exits Taken 12 | . . . . . 1 . 1 . 1 . 1 . 1 . 1 . 1 . 1 1 . 1 . 1 . 1 . . Unknown Exits Taken 5 | 1 1 1 1 1 . . . . . . . . . . . . . . . . . . . . . . . . Scrap Searched 1 | . . 1 . . . . . . . . . . . . . . . . . . . . . . . . . . Spaces Dug 88 | . 2 . . . 2 18 . . . . . 4 . 2 . . . 2 15 8 13 1 8 6 . . 3 4 Terrain Destroyed 537 | . 22 . . . 29 24 3 . . . . 10 . 12 3 14 . 58 24 36 57 19 29 19 19 . 104 55 Melee 37 | . . . . . 2 18 . . . . . 4 . . . . . . . 2 9 . . 2 . . . . Projectile 324 | . 2 . . . . . . . . . . 6 . 12 3 14 . 42 24 31 48 14 26 17 19 . 38 28 AOE 176 | . 20 . . . 27 6 3 . . . . . . . . . . 16 . 3 . 5 3 . . . 66 27 Terrain Rammed . | . . . . . . . . . . . . . . . . . . . . . . . . . . . . . Walls Destroyed . | . . . . . . . . . . . . . . . . . . . . . . . . . . . . . Machines Disabled . | . . . . . . . . . . . . . . . . . . . . . . . . . . . . . Actions | -11 -10 -10 -10 -9 -8 -8 -8 -8 -8 -8 -7 -7 -6 -6 -5 -5 -4 -4 -3 -3 -3 -2 -2 -2 -2 -1 -1 -1 --------- Run | Yrd Mat Min Exi Min Mat Gar Mat Gar Mat Gar Fac Gar Fac Gar Fac Gar Fac Gar Res Tes Gar Res Gar Res Gar Acc Gar Acc Total 20125 | 97 1260 459 392 46 858 1503 287 842 33 638 171 1166 27 1094 268 1104 171 1210 618 824 1364 392 1698 366 1155 15 1515 552 Wait 2710 | . 244 33 115 9 145 126 45 60 . 146 15 92 . 84 50 104 23 188 85 112 255 84 240 16 85 . 295 59 Move 14052 | 73 888 405 259 34 546 1125 225 694 33 379 115 860 24 884 168 846 127 789 453 530 809 231 1141 267 882 15 923 327 Hop 2 | . . . . . . . 1 . . . . . . . . . . 1 . . . . . . . . . . Pick Up 357 | 6 19 . 4 . 17 22 3 2 . 2 2 47 1 22 10 22 4 19 9 17 43 7 37 4 13 . 17 8 Fast Attach 175 | 2 8 1 . . 12 4 . 2 . 4 . 7 . 10 4 15 2 4 3 14 16 . 20 7 17 . 16 7 Attach 229 | 2 8 1 1 . 12 15 . 1 . . 4 24 1 22 11 17 2 10 5 10 12 8 36 3 6 . 8 10 Detach 61 | . . 1 1 . . . . . . . 1 12 . 11 4 9 . 2 . 4 2 1 9 . . . 4 . Swap 312 | . 4 . 3 1 15 16 4 7 . 3 4 8 . 2 3 14 1 19 12 26 22 11 37 11 28 . 35 26 Drop 433 | . 12 . 6 . 25 27 3 3 . 7 1 39 1 31 11 34 3 15 8 29 29 5 35 15 36 . 36 22 Fire 1283 | 14 77 18 . 2 78 48 6 52 . 11 22 18 . 19 7 33 9 128 43 69 115 45 103 40 84 . 158 84 Melee 205 | . . . 3 . 2 44 . 1 . 14 7 52 . . . . . . . 12 35 . 32 3 . . . . Ram 3 | . . . . . . . . . . . . . . . . . . . . . . . . . . . . 3 Kick . | . . . . . . . . . . . . . . . . . . . . . . . . . . . . . Crush 9 | . . . . . 6 . . . . . . 1 . . . 1 . . . . . . . . . . 1 . Escape Stasis 119 | . . . . . . 59 . 20 . . . 5 . 9 . 8 . 2 . . 4 . 6 . . . . 6 Rewire 175 | . . . . . . 17 . . . 72 . 1 . . . 1 . 33 . 1 22 . 2 . 4 . 22 . Trap . | . . . . . . . . . . . . . . . . . . . . . . . . . . . . . Miscellaneous . | . . . . . . . . . . . . . . . . . . . . . . . . . . . . . Route ------- -11/Scrapyard -10/Materials (discovered 5 exits: [*Mat x3] / [*Min] / [*Sub]) -10/Mines (discovered 2 exits: [*Mat] / *Exi) -10/Exiles -9/Mines -8/Materials (discovered 2 exits: Fac / Gar) -8/Garrison (discovered 4 exits: *Mat x4) -8/Materials -8/Garrison (discovered 4 exits: *Fac x3 / *Mat) -8/Materials -8/Garrison (discovered 3 exits: *Fac x3) -7/Factory -7/Garrison (discovered 3 exits: *Fac x3) -6/Factory -6/Garrison (discovered 3 exits: *Fac x3) -5/Factory -5/Garrison (discovered 3 exits: *Fac x3) -4/Factory -4/Garrison (discovered 3 exits: *Res x3) -3/Research (discovered 4 exits: *Res / Arm / *Tes x2) -3/Testing -3/Garrison (discovered 3 exits: *Res x3) -2/Research -2/Garrison (discovered 4 exits: *Acc x3 / *Res) -2/Research -2/Garrison (discovered 3 exits: *Acc x3) -1/Access -1/Garrison (discovered 3 exits: [*Acc x3]) -1/Access History --------- Turn | Location | Event 3 | -11/Scrapyard | Discovered new exit (range 16) 90 | -11/Scrapyard | Entered Materials 196 | -10/Materials | Discovered new exit (range 7) 310 | -10/Materials | Build established: Mutant 320 | -10/Materials | Discovered new exit (range 16) 424 | -10/Materials | Discovered new exit (range 15) 560 | -10/Materials | Lost 4 parts (1n3w) 797 | -10/Materials | Discovered new exit (range 13) 850 | -10/Materials | Core integrity fell below 50% 1003 | -10/Materials | Discovered new exit (range 12) 1106 | -10/Materials | Central database locked down 1267 | -10/Materials | Loaded intel: 10 trap records 1421 | -10/Materials | Learned Storage emergency access door positions 1539 | -10/Materials | Learned Storage terminal intel 1602 | -10/Materials | Learned Storage emergency access door positions 1673 | -10/Materials | Learned Materials trap positions 1806 | -10/Materials | Entered Mines 1816 | -10/Mines | Deemed a non-threat by the Exiles lab entrance 1816 | -10/Mines | Discovered new exit (range 5) 2133 | -10/Mines | Found a damaged Exp. Sensor Array with a note attached 2137 | -10/Mines | Found Prototype Device 2137 | -10/Mines | Identified Exp. Sensor Array 2209 | -10/Mines | Discovered new exit (range 15) 2286 | -10/Mines | Learned location of 1 exit from Materials 2310 | -10/Mines | Learned 4 Materials zone layouts 2372 | -10/Mines | Core integrity fell below 20% 2544 | -10/Mines | Entered Exiles 2586 | -10/Exiles | Met 8R-AWN 2615 | -10/Exiles | Met EX-HEX 2661 | -10/Exiles | Met EX-BIN 2695 | -10/Exiles | Aligned with FarCom system 2697 | -10/Exiles | Given EX-Vault access code 2735 | -10/Exiles | Opened EX-Vault 2748 | -10/Exiles | Found Flying Fortress v7 2777 | -10/Exiles | Warned to stay clear of 0b10 Research branches 2817 | -10/Exiles | Exiles lab attacked by MAIN.C 2826 | -10/Exiles | Found Gui. Plasma Cannon 2829 | -10/Exiles | Found AWS/Autocannon 2920 | -10/Exiles | Learned location of Zion (-7) 2967 | -10/Exiles | Discovered new exit (range 12) 3107 | -10/Exiles | Stole three prototypes: Flying Fortress v7, Gui. Plasma Cannon, AWS/Autocannon 3107 | -10/Exiles | Entered Mines 3115 | -9/Mines | Assembled infested the area 3120 | -9/Mines | Assisted by a Guerilla fighting off Assembled 3152 | -9/Mines | Discovered new exit (range 10) 3176 | -9/Mines | Entered Materials 3176 | -8/Materials | Evolved 4 slots: Propulsion x2, Utility x1, Weapon x1 3177 | -8/Materials | Identified exit to Factory 3179 | -8/Materials | Loaded intel: 16 trap records 3462 | -8/Materials | Build established: Skirmisher 4316 | -8/Materials | Build established: Tank 4420 | -8/Materials | Identified exit to Garrison 4420 | -8/Materials | Entered Garrison 4505 | -8/Garrison | Triggered checkpoint 4622 | -8/Garrison | Destroyed 9 combat bots 4658 | -8/Garrison | Discovered new exit (range 12) 4676 | -8/Garrison | Installed Relay Interface Framework 4938 | -8/Garrison | Discovered new exit (range 14) 5124 | -8/Garrison | Triggered checkpoint 5163 | -8/Garrison | Garrison Relay disabled 5178 | -8/Garrison | Garrison Relay disabled 5378 | -8/Garrison | Triggered checkpoint 5385 | -8/Garrison | Discovered new exit (range 7) 5390 | -8/Garrison | Triggered checkpoint 5453 | -8/Garrison | Build established: Mutant 5489 | -8/Garrison | Triggered checkpoint 5542 | -8/Garrison | Discovered new exit (range 5) 5601 | -8/Garrison | Entered Materials 5601 | -8/Materials | Accompanied by 7 allies 5785 | -8/Materials | Build established: Commander-Skirmisher 5785 | -8/Materials | Identified exit to Garrison 5785 | -8/Materials | Entered Garrison 5785 | -8/Garrison | Accompanied by 7 allies 5795 | -8/Garrison | Expanded RIF knowledge: Structural Interface 5797 | -8/Garrison | Triggered checkpoint 5810 | -8/Garrison | Spotted B-75 Beast 5810 | -8/Garrison | Spotted B-75 Beast 5889 | -8/Garrison | Triggered checkpoint 5954 | -8/Garrison | P-60 Hacker assimilated allied XB-5AI(h) 5989 | -8/Garrison | Triggered checkpoint 5993 | -8/Garrison | Discovered exit to Factory (range 14) 6039 | -8/Garrison | Triggered checkpoint 6102 | -8/Garrison | Discovered exit to Factory (range 7) 6141 | -8/Garrison | Triggered checkpoint 6245 | -8/Garrison | Triggered checkpoint 6263 | -8/Garrison | Triggered checkpoint 6264 | -8/Garrison | Triggered checkpoint 6338 | -8/Garrison | Discovered exit to Factory (range 12) 6377 | -8/Garrison | Discovered new exit (range 5) 6379 | -8/Garrison | Entered Materials 6396 | -8/Materials | Identified exit to Garrison 6396 | -8/Materials | Entered Garrison 6405 | -8/Garrison | Expanded RIF knowledge: Patrol Navigation 6420 | -8/Garrison | Discovered exit to Factory (range 80) 6420 | -8/Garrison | Discovered exit to Factory (range 46) 6420 | -8/Garrison | Discovered exit to Factory (range 57) 6434 | -8/Garrison | Build established: Tank 6490 | -8/Garrison | Triggered checkpoint 6495 | -8/Garrison | Garrison Relay disabled 6832 | -8/Garrison | Triggered checkpoint 6846 | -8/Garrison | Garrison Relay disabled 6865 | -8/Garrison | Triggered checkpoint 6871 | -8/Garrison | Lost 6 allies 6874 | -8/Garrison | Entered Factory 6874 | -7/Factory | Evolved 2 slots: Propulsion x1, Utility x1 6876 | -7/Factory | FarCom data flow suspended 6911 | -7/Factory | Garrison activated, responded to threat 7021 | -7/Factory | Identified exit to Garrison 7021 | -7/Factory | Entered Garrison 7021 | -7/Garrison | Accompanied by 1 ally 7388 | -7/Garrison | Triggered checkpoint 7398 | -7/Garrison | Garrison Relay disabled 7491 | -7/Garrison | Triggered checkpoint 7493 | -7/Garrison | Triggered checkpoint 7625 | -7/Garrison | Triggered checkpoint 7675 | -7/Garrison | Expanded RIF knowledge: Robot Detection 7749 | -7/Garrison | Rescued a captive Derelict 7749 | -7/Garrison | Rescued a captive Derelict 7768 | -7/Garrison | Discovered new exit (range 2) 7873 | -7/Garrison | Heavy support dispatched to Factory 7993 | -7/Garrison | Triggered checkpoint 8089 | -7/Garrison | Triggered checkpoint 8172 | -7/Garrison | Build established: Hauler-Tank 8229 | -7/Garrison | Garrison Relay disabled 8385 | -7/Garrison | Triggered checkpoint 8392 | -7/Garrison | Discovered new exit (range 14) 8515 | -7/Garrison | Build established: Bothacker-Tank 8652 | -7/Garrison | H-XX Assembler disabled 8793 | -7/Garrison | Discovered new exit (range 5) 8857 | -7/Garrison | Triggered checkpoint 8892 | -7/Garrison | Garrison Relay disabled 8980 | -7/Garrison | Entered Factory 8980 | -6/Factory | Evolved 2 slots: Propulsion x1, Utility x1 9036 | -6/Factory | Identified exit to Garrison 9036 | -6/Factory | Entered Garrison 9174 | -6/Garrison | Triggered checkpoint 9454 | -6/Garrison | Triggered checkpoint 9530 | -6/Garrison | Triggered checkpoint 9658 | -6/Garrison | Triggered checkpoint 9749 | -6/Garrison | Discovered new exit (range 11) 9983 | -6/Garrison | Spotted B-75 Beast 10008 | -6/Garrison | Allies destroyed B-75 Beast 10137 | -6/Garrison | Spotted B-75 Beast 10148 | -6/Garrison | Destroyed B-75 Beast 10377 | -6/Garrison | Triggered checkpoint 10554 | -6/Garrison | Found embedded Infiltrators 10576 | -6/Garrison | Garrison Relay disabled 10588 | -6/Garrison | Triggered checkpoint 10708 | -6/Garrison | Discovered new exit (range 14) 11049 | -6/Garrison | Discovered new exit (range 13) 11069 | -6/Garrison | Expanded RIF knowledge: Code Merge 11107 | -6/Garrison | Rewired B-90 Cyclops 11138 | -6/Garrison | Rewired B-90 Cyclops 11227 | -6/Garrison | Entered Factory 11227 | -5/Factory | Accompanied by 3 allies 11227 | -5/Factory | Evolved 2 slots: Power x1, Utility x1 11633 | -5/Factory | Garrison activated, responded to threat 11716 | -5/Factory | Identified exit to Garrison 11716 | -5/Factory | Entered Garrison 11716 | -5/Garrison | Accompanied by 1 ally 11754 | -5/Garrison | Triggered checkpoint 11825 | -5/Garrison | Garrison Relay disabled 11995 | -5/Garrison | Rescued a captive Derelict 11996 | -5/Garrison | Rescued a captive Derelict 12017 | -5/Garrison | Spotted B-75 Beast 12052 | -5/Garrison | Destroyed B-75 Beast 12064 | -5/Garrison | Lost 3 allies 12191 | -5/Garrison | Discovered new exit (range 9) 12328 | -5/Garrison | Build established: Hauler-Tank 12454 | -5/Garrison | Spotted Striker 12454 | -5/Garrison | Spotted Striker 12471 | -5/Garrison | Destroyed Striker 12477 | -5/Garrison | Destroyed Striker 12600 | -5/Garrison | Triggered checkpoint 12698 | -5/Garrison | Triggered checkpoint 12744 | -5/Garrison | Expanded RIF knowledge: Program Shield 12767 | -5/Garrison | Phase Generator disabled 12937 | -5/Garrison | AWS/Autocannon suddenly broke down 13099 | -5/Garrison | Discovered new exit (range 3) 13164 | -5/Garrison | Garrison Relay disabled 13550 | -5/Garrison | Triggered checkpoint 13561 | -5/Garrison | Build established: Botlord-Tank 13658 | -5/Garrison | Triggered checkpoint 13660 | -5/Garrison | Garrison Relay disabled 13707 | -5/Garrison | Garrison Relay disabled 13815 | -5/Garrison | Discovered new exit (range 13) 13950 | -5/Garrison | Triggered checkpoint 14061 | -5/Garrison | Entered Factory 14061 | -4/Factory | Accompanied by 2 allies 14061 | -4/Factory | Evolved 2 slots: Propulsion x2 14150 | -4/Factory | Found Prototype Launcher 14235 | -4/Factory | Build established: Bothacker-Tank 14309 | -4/Factory | Identified exit to Garrison 14312 | -4/Factory | Entered Garrison 14312 | -4/Garrison | Accompanied by 2 allies 14342 | -4/Garrison | Expanded RIF knowledge: Zone Cloak 14400 | -4/Garrison | Triggered checkpoint 14500 | -4/Garrison | Discovered new exit (range 15) 14592 | -4/Garrison | Triggered checkpoint 14623 | -4/Garrison | Garrison Relay disabled 14639 | -4/Garrison | Build established: Botlord-Tank 14652 | -4/Garrison | Assembled breached garrison interior 14677 | -4/Garrison | Identified Tesla Bomb Launcher 14747 | -4/Garrison | Garrison Relay disabled 15102 | -4/Garrison | Destroyed 36 combat bots 15387 | -4/Garrison | Discovered new exit (range 31) 15387 | -4/Garrison | Discovered new exit (range 65) 15387 | -4/Garrison | Discovered new exit (range 91) 15403 | -4/Garrison | Garrison Relay disabled 15452 | -4/Garrison | Build established: Botlord-Mutant 15761 | -4/Garrison | Build established: Botlord-Tank 15892 | -4/Garrison | Spotted B-86 Titan 15912 | -4/Garrison | Allies destroyed B-86 Titan 15945 | -4/Garrison | Found Relay Coupler [Proto] 15964 | -4/Garrison | Lost 3 allies 15969 | -4/Garrison | Found Relay Coupler [Proto] 15972 | -4/Garrison | Found Relay Coupler [Proto] 16062 | -4/Garrison | Garrison Relay disabled 16175 | -4/Garrison | Entered Research 16175 | -3/Research | Accompanied by 1 ally 16175 | -3/Research | Evolved 2 slots: Utility x2 16425 | -3/Research | First assault squad dispatched 16775 | -3/Research | Discovered new exit (range 72) 16955 | -3/Research | Identified exit to Armory 16955 | -3/Research | Identified exit to Testing 17022 | -3/Research | Discovered new exit (range 8) 17112 | -3/Research | Entered Testing 17112 | -3/Testing | Accompanied by 1 ally 17183 | -3/Testing | Found Prototype Processor 17184 | -3/Testing | Identified Exp. Target Analyzer 17195 | -3/Testing | Found Prototype Device 17195 | -3/Testing | Identified Exp. Thermal Defense Suite 17225 | -3/Testing | Spotted PX-G1QRAASKHI 17275 | -3/Testing | Found Prototype Launcher 17275 | -3/Testing | Identified Adv. Micro-nuke Launcher 17314 | -3/Testing | Assimilated PX-G1QRAASKHI with formatsys_high 17362 | -3/Testing | First assault squad dispatched 17469 | -3/Testing | Found Gamma Bomb Array 17620 | -3/Testing | Build established: Bothacker-Tank 17863 | -3/Testing | Found Prototype Energy Gun 17863 | -3/Testing | Identified Tachyon Dispersion Ray 17935 | -3/Testing | Found Prototype Energy Cannon 17935 | -3/Testing | Identified Cld. Nova Cannon 18358 | -3/Testing | Identified exit to Garrison 18358 | -3/Testing | Entered Garrison 18428 | -3/Garrison | Found embedded Infiltrators 18475 | -3/Garrison | Build established: Hauler-Tank 18605 | -3/Garrison | Garrison Relay disabled 18765 | -3/Garrison | Spotted B-86 Titan 18850 | -3/Garrison | Destroyed B-86 Titan 18972 | -3/Garrison | Triggered checkpoint 19109 | -3/Garrison | Discovered new exit (range 8) 19210 | -3/Garrison | Triggered checkpoint 19252 | -3/Garrison | Garrison Relay disabled 19440 | -3/Garrison | Triggered checkpoint 19440 | -3/Garrison | Triggered checkpoint 19563 | -3/Garrison | Build established: Bothacker-Tank 19598 | -3/Garrison | Triggered checkpoint 19677 | -3/Garrison | Garrison Relay disabled 19805 | -3/Garrison | Expanded RIF knowledge: Alert ID Control 20175 | -3/Garrison | Discovered new exit (range 12) 20180 | -3/Garrison | Triggered checkpoint 20242 | -3/Garrison | Triggered checkpoint 20302 | -3/Garrison | Garrison Relay disabled 20336 | -3/Garrison | Discovered new exit (range 12) 20336 | -3/Garrison | Discovered new exit (range 53) 20336 | -3/Garrison | Discovered new exit (range 65) 20442 | -3/Garrison | P-80 Master assimilated allied Swordsman 8b 20642 | -3/Garrison | Entered Research 20642 | -2/Research | Evolved 2 slots: Utility x2 20892 | -2/Research | First assault squad dispatched 21211 | -2/Research | Identified exit to Garrison 21211 | -2/Research | Entered Garrison 21211 | -2/Garrison | Accompanied by 1 ally 21251 | -2/Garrison | Spotted B-90 Cyclops 21356 | -2/Garrison | Destroyed B-90 Cyclops 21478 | -2/Garrison | Found Relay Coupler [Proto] 21481 | -2/Garrison | Found Relay Coupler [Proto] 21484 | -2/Garrison | Found Relay Coupler [Proto] 21486 | -2/Garrison | Found Relay Coupler [Proto] 21563 | -2/Garrison | Triggered checkpoint 21651 | -2/Garrison | Garrison Relay disabled 21782 | -2/Garrison | Build established: Botlord-Tank 21815 | -2/Garrison | Triggered checkpoint 21882 | -2/Garrison | Triggered checkpoint 21929 | -2/Garrison | Spotted B-90 Cyclops 22010 | -2/Garrison | Destroyed B-90 Cyclops 22040 | -2/Garrison | Lost 12 parts (2p4n3u3w) 22069 | -2/Garrison | Triggered checkpoint 22097 | -2/Garrison | Lost 5 parts (1p2u2w) 22262 | -2/Garrison | Build established: Botlord-Mutant 22272 | -2/Garrison | Heavy support dispatched to Access 22321 | -2/Garrison | Expanded RIF knowledge: Signal Jamming 22383 | -2/Garrison | Triggered checkpoint 22397 | -2/Garrison | Garrison Relay disabled 22452 | -2/Garrison | Rescued a captive Derelict 22462 | -2/Garrison | Discovered new exit (range 10) 22485 | -2/Garrison | Triggered checkpoint 22515 | -2/Garrison | Discovered new exit (range 3) 22646 | -2/Garrison | Discovered new exit (range 7) 22684 | -2/Garrison | Triggered checkpoint 22711 | -2/Garrison | Garrison Relay disabled 22827 | -2/Garrison | Build established: Botlord-Gunner 22865 | -2/Garrison | Discovered new exit (range 11) 22881 | -2/Garrison | Spotted Striker 22882 | -2/Garrison | Spotted Striker 22901 | -2/Garrison | Assimilated Striker with formatsys_high 22908 | -2/Garrison | Rewired Executioner 23010 | -2/Garrison | Triggered checkpoint 23065 | -2/Garrison | H-XX Assembler disabled 23098 | -2/Garrison | Found Prototype Device 23098 | -2/Garrison | Identified Active Sensor Suite 23178 | -2/Garrison | Garrison Relay disabled 23288 | -2/Garrison | Garrison Relay disabled 23292 | -2/Garrison | Garrison Relay disabled 23300 | -2/Garrison | Garrison Relay disabled 23301 | -2/Garrison | Allies destroyed Striker 23340 | -2/Garrison | Garrison Relay disabled 23448 | -2/Garrison | Build established: Botlord-Mutant 23458 | -2/Garrison | Entered Research 23458 | -2/Research | Accompanied by 4 allies 23708 | -2/Research | First assault squad dispatched 23727 | -2/Research | Unchained authorized (GL-D0S) 23790 | -2/Research | Found Prototype Processor 23790 | -2/Research | Identified Exp. Core Analyzer 23902 | -2/Research | Identified exit to Garrison 23902 | -2/Research | Entered Garrison 23905 | -2/Garrison | Q-Series assembled to engage unique threat in Access 24020 | -2/Garrison | Triggered checkpoint 24049 | -2/Garrison | Garrison Relay disabled 24074 | -2/Garrison | Garrison Relay disabled 24121 | -2/Garrison | Spotted B-90 Cyclops 24128 | -2/Garrison | Assimilated Cyclops 9a with formatsys_high 24132 | -2/Garrison | Triggered checkpoint 24190 | -2/Garrison | Triggered checkpoint 24193 | -2/Garrison | Triggered checkpoint 24206 | -2/Garrison | Triggered checkpoint 24288 | -2/Garrison | Triggered checkpoint 24302 | -2/Garrison | Garrison Relay disabled 24341 | -2/Garrison | Discovered new exit (range 22) 24426 | -2/Garrison | QS Assembler disabled 24453 | -2/Garrison | Found Prototype Device 24453 | -2/Garrison | Identified Exp. Shock Absorption System 24465 | -2/Garrison | Found Prototype Device 24465 | -2/Garrison | Identified Exp. EM Shield 24469 | -2/Garrison | Found Prototype Processor 24469 | -2/Garrison | Identified Exp. Signal Interpreter 24477 | -2/Garrison | Identified exit to Access 24521 | -2/Garrison | Build established: Botlord-Tank 24849 | -2/Garrison | Discovered exit to Access (range 11) 24938 | -2/Garrison | Triggered checkpoint 25034 | -2/Garrison | Garrison Relay disabled 25218 | -2/Garrison | Discovered exit to Access (range 15) 25282 | -2/Garrison | Triggered checkpoint 25312 | -2/Garrison | Triggered checkpoint 25361 | -2/Garrison | Lost 4 allies 25370 | -2/Garrison | Expanded RIF knowledge: Hotswap 25430 | -2/Garrison | Garrison Relay disabled 25543 | -2/Garrison | Entered Access 25543 | -1/Access | Evolved 2 slots: Utility x2 25568 | -1/Access | Identified exit to Garrison 25568 | -1/Access | Entered Garrison 25570 | -1/Garrison | Triggered checkpoint 25591 | -1/Garrison | Expanded RIF knowledge: Coupler Efficiency 25773 | -1/Garrison | Triggered checkpoint 25805 | -1/Garrison | Garrison Relay disabled 25898 | -1/Garrison | Spotted B-99 Colossus 25901 | -1/Garrison | Assimilated Colossus 10a with formatsys_high 25917 | -1/Garrison | Triggered checkpoint 25979 | -1/Garrison | Lost 7 allies 26144 | -1/Garrison | Triggered checkpoint 26163 | -1/Garrison | Found Prototype Ballistic Gun 26163 | -1/Garrison | Identified Multirail 26172 | -1/Garrison | Triggered checkpoint 26364 | -1/Garrison | Triggered checkpoint 26418 | -1/Garrison | Garrison Relay disabled 26453 | -1/Garrison | Spotted Executioner 26455 | -1/Garrison | Spotted Executioner 26478 | -1/Garrison | Garrison Relay disabled 26486 | -1/Garrison | Triggered checkpoint 26661 | -1/Garrison | Discovered new exit (range 3) 26697 | -1/Garrison | Phase Generator disabled 26728 | -1/Garrison | Lost 5 allies 26903 | -1/Garrison | Found Adv. Powered Armor 26909 | -1/Garrison | Found Adv. Powered Armor 26932 | -1/Garrison | Found Adv. Powered Armor 27009 | -1/Garrison | Discovered new exit (range 11) 27084 | -1/Garrison | Lost 5 allies 27150 | -1/Garrison | Garrison Relay disabled 27211 | -1/Garrison | Spotted B-99 Colossus 27367 | -1/Garrison | Q-Series assembled to engage unique threat in Access 27647 | -1/Garrison | Garrison Relay disabled 27674 | -1/Garrison | Triggered checkpoint 27712 | -1/Garrison | QS Assembler disabled 27832 | -1/Garrison | Discovered new exit (range 68) 27832 | -1/Garrison | Discovered new exit (range 64) 27832 | -1/Garrison | Discovered new exit (range 5) 27898 | -1/Garrison | Entered Access 27898 | -1/Access | Accompanied by 2 allies 28072 | -1/Access | Unchained authorized (GL-D0S) 28148 | -1/Access | First assault squad dispatched 28286 | -1/Access | High security lockdown imminent 28365 | -1/Access | System corruption reached 10% 28366 | -1/Access | High security lockdown engaged 28585 | -1/Access | Scanned by Researcher 28591 | -1/Access | Spotted Investigator 28593 | -1/Access | Destroyed Investigator 28660 | -1/Access | System corruption reached 30% 28702 | -1/Access | Core integrity fell below 50% 28726 | -1/Access | Core integrity fell below 20% 28727 | -1/Access | Spotted Striker 28727 | -1/Access | Spotted Striker 28736 | -1/Access | Destroyed by Hammer Turret with Backup Laser VII Last Messages --------------- 28719_ System corrupted: Substantial component data lost. 28719_ Slug penetrates Wall. 28719_ Acquired Lgt. Antimatter Reactor. 28724_ Acquired Imp. Antigrav System. 28726_ Acquired 26 matter. 28726_ C-45 Heavy ARC bursts open, deploying its payload. 28726_ Striker unfolds itself. 28726_ P-80 Master unfolds itself. 28726_ Striker unfolds itself. 28726_ E-15 Imp unfolds itself. 28727_ Imp. Antigrav System destroyed. 28731_ E-15 Imp destroyed. 28732_ Lgt. Antimatter Reactor blown off. 28732_ E-15 Imp destroyed. 28732_ Knocked back. 28734_ %IJ4X6 ,R3 0MXFRNGKU0D9D# 28735_ Slammed into P-80 Master. 28736_ Knocked back. [Achievement: Rambo] [Achievement: Overachiever] Map ----- +----------------------------------------------------+ | ???#?## # #### [ !#?????????????????? | | ??##??# # #??##############?????????????????? | | ???#??# # #??###?#??????????????????????????? | | ???#??#####+## #?#??##???????????????????????????? | | ???#??##?## ######?###????????????????????????? | | ??##??### ###????#?????????????????????????# | | !%###=##### ##?###?####??????????????????????# | | %!+ = |! ###????##?#??????????????????????# | | % ###]##### #?######????#????????????????????# | | ?#?####### ###########?#????????????????????# | | ??#####?### # ###????????????????????# | | +#####?#### # ###???????????????????+ | | ##?###?#?# # ####??????????????????## | | ####?###?# + #???#??????????????????# | | ############# # " #?#????????????????????# | | ## # # """ ##??#???????????????????? | | +## # # """ ###?????????????????????? | | # #%# " #?##????????????????????? | | # # ########################??????????? | | + !=[#% !% % ??????????? | | # [ !#* ??????????? | | # %= ;% ! g ?????????? | | # [| + t ?????????? | | # = # ! % ????????? | | # # t %%= K g g g ????????? | | # # % =%=p=p@ %g g CA ????????? | | / #########*#/###########?????????????? | | # #?## ]K% #?????????????????? | | # #### % #?????????????????? | | ### ##?# #?????????????????? | | #?############?## #?????????????????? | | ???####???#?##??# ""T"" #?????????????????? | | #########???????# """"" #?????????????????? | | = ????#???################?????????????????? | | ??????#?????????????????????????????????? | | ??????##??#???????????????????????????????? | | " ????#?????????????????????????????????????? | | ""? ?????????????????????????????????????????? | | ""? ??? ? ????????????????????????????????????? | | " ?????#????????????????????????????????????? | | ???#?????????????????????????????????????? | | ? ????????????????????????????????????????? | | ??????????????????????????????????????????? | | ??????????????????????????????????????????? | | ??????????????????????????????????????????? | | #####+##?????????????????????????????????????????? | | ???# ??????????????????????????????????????????? | | ???#?????????????????????????????????????????????? | | ?????????????????????????????????????????????????? | | ?????????????????????????????????????????????????? | +----------------------------------------------------+ Best States ------------- Heat Dissipation 99 Coolant Potential 120 Energy Generation 49 Energy Capacity 1200 Matter Stores 332 Matter Capacity 550 Sight Range 23 Robot Scan Range 20 Terrain Scan Range 16 Terrain Scan Density 210 Jamming Range 12 Cloak Strength 4 EM Shielding 3 Corruption Block 15 Armor Coverage 1600 Resistance: EX 75 Resistance: EM 75 Weapon Cycling 25 Phase Shifting 15 Evasion (%) 60 Target Analysis 10 Core Analysis 8 Armor Integrity Analysis 40 Recoil Reduction 8 Energy Filtering 50 Offensive Hacking 12 Relay Coupler Types 5 Relay Coupler Value 241 Item Schematics ----------------- Arm. Heavy Treads | -3/Research | Scanalyzed Imp. Matter Neutralizer | -3/Testing | Archive Particle Accelerator | -3/Testing | Archive Hvy. Proton Cannon | -3/Testing | Archive Tactical Quantum Warhead | -3/Testing | Archive Cld. Gravmag System | -3/Testing | Archive Coolant Network | -3/Testing | Archive Hvy. Proton Missile Launcher | -3/Testing | Archive System Purifier | -3/Testing | Archive Robot Schematics ------------------ E-15 Imp | -3/Testing | Archive A-15 Conveyor | -3/Testing | Archive Fabricated ------------ Nothing Repaired ---------- Nothing Studied --------- Arm. Heavy Treads | -3/Research | Hacked Alien Tech Used ----------------- None Achievements -------------- Boltbath Killing Spree Metal Spider Overachiever Rambo Challenges ------------ None Game ------ Seed TimingHoverJets Manual? 0 Play Time 06:31:15 Cumulative 63.0 hours Start 2025.12.22 @ 00:10:36 End 2025.12.24 @ 02:53:17 Sessions 7 Manual Loads 0 Difficulty Rogue Special Mode None Game No. 23 Rogue 23 Adventurer 0 Explorer 0 Win Type - Total 0 Types 0/0/0/0/0/0/0/0/0/0 Lore% 50 Gallery% 55 Achievement% 50 Wizard Run 0 Options --------- Layout 0 ASCII 0 Keyboard 0 Movement Mouse Keybinds 0 Fullscreen 1 Font 24/Smallcaps Map View 183x50 Zoom Use 0% Tactical HUD 1 Map Filters NONE Filters NONE Steam 1 RUN: f7803f83-bad3-4c57-a803-2a767578c136